{"text_format":"1","workbook":"xlsx","n_sheets":26,"sheets":["Start","Main","TQ","CandlingInput","CandlingData","CandlingChart","DebrisInput","FlockIDList","CandlingPivotInfertile","CandlingPivot24","CandlingPivot48","DebrisData","DebrisChart","DebrisPivotInfertile","DebrisPivotEarly","DebrisPivotMid","DebrisPivotLate","WeightInput","WeightData","WeightChart","Languages","LanguageExtension","Translations","LanguageCorrection","RecipientList","BreedList"],"not_rendered":{"charts":15,"images":33,"macros":1,"external_links":0,"defined_names":4,"comments":0,"pivot_tables":7},"unopened":[],"bounds":{"document_bytes":16777216,"sheet_cells":100000,"rows_first":2000,"rows_last":500,"rows_between":2000,"halvings":0,"cell_chars":16384,"cell_head_chars":4096},"cells_cut":0,"cells_raw":0,"read":"whole","date_system":"1900"}

{"sheet":"Start","index":0,"n_rows":6,"n_cols":12,"rows_kept":6,"cut":false,"hidden":false,"merged":[[1,1,1,20],[3,11,3,13],[5,11,5,13]]}
[]
[null,{"$f":"Languages!A3","v":"Hatchery Monitoring"}]
[]
[null,null,null,null,null,null,null,null,null,null,{"$f":"Languages!A4","v":"Company Name"},"Aviagen"]
[]
[null,null,null,null,null,null,null,null,null,null,{"$f":"Languages!A69","v":"Language Selection"},"English"]

{"sheet":"Main","index":1,"n_rows":2,"n_cols":20,"rows_kept":2,"cut":false,"hidden":false,"merged":[[1,19,1,21],[1,13,1,14]]}
[]
[null,null,null,null,null,null,null,null,null,null,null,null,{"$f":"Languages!A69","v":"Language Selection"},"English",null,null,null,null,{"$f":"Languages!A4","v":"Company Name"},"Aviagen"]

{"sheet":"TQ","index":2,"n_rows":6,"n_cols":17,"rows_kept":6,"cut":false,"hidden":false,"merged":[]}
[]
["Category","Age","AgeBegin","Infertile ","24 hours","48 hours","Blood ring","Black Eye","Feathers ","Turned / Malpositioned","Pipped Air cell","External Pip","Cracked ","Contaminated ","Early dead","Mid Dead","Late Dead"]
["Young","25-30 weeks",25,6,1,2,2.5,1,1,1.5,1,1,0.5,0.5,5.5,1,3.5]
["Peak","31-45 weeks",31,2.5,0.5,1,2,0.5,0.5,1,1,0.5,0.5,0.5,3.5,0.5,2.5]
["Post Peak","46-50 weeks",46,5,0.5,1,2.5,1,0.5,1,1,0.5,0.5,0.5,4,1,2.5]
["Ageing","51-60 weeks",51,8,0.5,1,3,1,0.5,1.5,1,0.5,1,1,4.5,1,3]

{"sheet":"CandlingInput","index":3,"n_rows":38,"n_cols":19,"rows_kept":38,"cut":false,"hidden":false,"merged":[[17,2,17,3],[34,2,34,3],[36,2,36,3],[12,5,12,6],[5,2,5,3],[5,5,5,6],[20,2,20,3],[21,2,21,3],[13,5,13,6],[37,2,37,3],[8,5,8,6],[11,5,11,6],[35,2,35,3],[37,4,37,18],[26,7,26,9],[28,2,28,3],[29,2,29,3],[30,2,30,3],[31,2,31,3],[32,2,32,3],[33,2,33,3],[14,2,14,3],[33,7,33,9],[34,7,34,9],[35,7,35,9],[36,7,36,9],[29,7,29,9],[30,7,30,9],[31,7,31,9],[32,7,32,9],[3,1,3,7],[3,9,3,19],[24,1,24,19],[27,7,27,9],[28,7,28,9],[6,2,6,3],[9,2,9,3],[12,2,12,3],[27,2,27,3],[15,2,15,3],[18,2,18,3],[8,2,8,3],[11,2,11,3],[26,2,26,3],[6,5,6,6],[9,5,9,6]]}
[]
[null,{"$f":"Languages!A67","v":"Candling Monitoring"}]
[]
[null,{"$f":"Languages!A11","v":"General Information"},null,null,null,null,null,null,null,{"$f":"Languages!A12","v":"Data Summary"}]
[]
[null,null,{"$f":"Languages!A13","v":"Company"},null,null,{"$f":"Languages!A19","v":"Setter No"}]
[null,null,{"$f":"Start!L4","v":"Aviagen"}]
[]
[null,null,{"$f":"Languages!A14","v":"Farm"},null,null,{"$f":"Languages!A21","v":"Date Set"}]
[]
[]
[null,null,{"$f":"Languages!A15","v":"Flock ID"},null,null,{"$f":"Languages!A22","v":"Date Candled"}]
[]
[null,null,null,null,null,{"$f":"IF(F10<>\"\",IF(F13<>\"\",IF(ABS(F13-F10)>1,\"Age @candled: \" & F13-F10 & \" days\",\"Age @candled: \" & F13-F10 & \" day\"),\"\"),\"\")","v":""}]
[null,null,{"$f":"Languages!A16","v":"Breed"}]
[]
[]
[null,null,{"$f":"Languages!A17","v":"Hen Age (weeks)"}]
[]
[]
[null,null,{"$f":"Languages!A18","v":"Egg Age (days)"}]
[]
[]
[]
[null,{"$f":"Languages!A5","v":"Data Input"}]
[]
[null,null,{"$f":"Languages!A75","v":"Tray"},null,1,2,3,4,null,null,5,6,7,8,9,10,"Sum",{"$f":"Languages!A35","v":"% Eggs Set"},{"$f":"Languages!A36","v":"Top Quartile %"}]
[null,null,{"$f":"Languages!A25","v":"No of Eggs Set"},null,null,null,null,null,null,null,null,null,null,null,null,null,{"$f":"SUM(E28:P28)","v":0},"-","-"]
[null,null,{"$f":"Languages!A26","v":"No Eggs Removed"},null,null,null,null,null,null,null,null,null,null,null,null,null,0,{"$f":"IF(OR($Q$28=0,$Q29=0),\"\",$Q29/$Q$28*100)","v":""},"-"]
[null,null,{"$f":"Languages!A27","v":"Infertile"},null,null,null,null,null,null,null,null,null,null,null,null,null,0,"",{"$f":"IF(C19=\"\",\"\",VLOOKUP($C$19,TQ!$C$3:$Q$6,2,TRUE))","v":""}]
[null,null,{"$f":"Languages!A28","v":"24h Early Dead"},null,null,null,null,null,null,null,null,null,null,null,null,null,0,"",{"$f":"IF(C19=\"\",\"\",VLOOKUP($C$19,TQ!$C$3:$Q$6,3,TRUE))","v":""}]
[null,null,{"$f":"Languages!A29","v":"48h Early Dead"},null,null,null,null,null,null,null,null,null,null,null,null,null,0,"",{"$f":"IF(C19=\"\",\"\",VLOOKUP($C$19,TQ!$C$3:$Q$6,4,TRUE))","v":""}]
[null,null,{"$f":"Languages!A30","v":"Blood Ring"},null,null,null,null,null,null,null,null,null,null,null,null,null,0,"",{"$f":"IF(C19=\"\",\"\",VLOOKUP($C$19,TQ!$C$3:$Q$6,5,TRUE))","v":""}]
[null,null,{"$f":"Languages!A31","v":"Black Eye"},null,null,null,null,null,null,null,null,null,null,null,null,null,0,"",{"$f":"IF(C19=\"\",\"\",VLOOKUP($C$19,TQ!$C$3:$Q$6,6,TRUE))","v":""}]
[null,null,{"$f":"Languages!A32","v":"Contaminated"},null,null,null,null,null,null,null,null,null,null,null,null,null,0,"",{"$f":"IF(C19=\"\",\"\",VLOOKUP($C$19,TQ!$C$3:$Q$6,12,TRUE))","v":""}]
[null,null,{"$f":"Languages!A33","v":"Poor Shell Quality"},null,null,null,null,null,null,null,null,null,null,null,null,null,0,""]
[null,null,{"$f":"Languages!A34","v":"Cracked Shell"},null,null,null,null,null,null,null,null,null,null,null,null,null,0,"",{"$f":"IF(C19=\"\",\"\",VLOOKUP($C$19,TQ!$C$3:$Q$6,11,TRUE))","v":""}]
[null,null,{"$f":"Languages!A37","v":"Notes"}]

{"sheet":"CandlingData","index":4,"n_rows":4,"n_cols":20,"rows_kept":4,"cut":false,"hidden":false,"merged":[]}
[]
[{"$f":"Languages!A67","v":"Candling Monitoring"}]
[{"$f":"IF(Languages!$A$2<>\"English\",INDEX(INDIRECT(\"Languages!Table7[#Data]\"),MATCH(A4,INDIRECT(\"Languages!Table7[English]\"),0),MATCH(Languages!$A$2,INDIRECT(\"Languages!Table7[#Headers]\"),0)),\"\")","v":""},{"$f":"IF(Languages!$A$2<>\"English\",INDEX(INDIRECT(\"Languages!Table7[#Data]\"),MATCH(B4,INDIRECT(\"Languages!Table7[English]\"),0),MATCH(Languages!$A$2,INDIRECT(\"Languages!Table7[#Headers]\"),0)),\"\")","v":""},{"$f":"IF(Languages!$A$2<>\"English\",INDEX(INDIRECT(\"Languages!Table7[#Data]\"),MATCH(C4,INDIRECT(\"Languages!Table7[English]\"),0),MATCH(Languages!$A$2,INDIRECT(\"Languages!Table7[#Headers]\"),0)),\"\")","v":""},{"$f":"IF(Languages!$A$2<>\"English\",INDEX(INDIRECT(\"Languages!Table7[#Data]\"),MATCH(D4,INDIRECT(\"Languages!Table7[English]\"),0),MATCH(Languages!$A$2,INDIRECT(\"Languages!Table7[#Headers]\"),0)),\"\")","v":""},{"$f":"IF(Languages!$A$2<>\"English\",INDEX(INDIRECT(\"Languages!Table7[#Data]\"),MATCH(E4,INDIRECT(\"Languages!Table7[English]\"),0),MATCH(Languages!$A$2,INDIRECT(\"Languages!Table7[#Headers]\"),0)),\"\")","v":""},{"$f":"IF(Languages!$A$2<>\"English\",INDEX(INDIRECT(\"Languages!Table7[#Data]\"),MATCH(F4,INDIRECT(\"Languages!Table7[English]\"),0),MATCH(Languages!$A$2,INDIRECT(\"Languages!Table7[#Headers]\"),0)),\"\")","v":""},{"$f":"IF(Languages!$A$2<>\"English\",INDEX(INDIRECT(\"Languages!Table7[#Data]\"),MATCH(G4,INDIRECT(\"Languages!Table7[English]\"),0),MATCH(Languages!$A$2,INDIRECT(\"Languages!Table7[#Headers]\"),0)),\"\")","v":""},{"$f":"IF(Languages!$A$2<>\"English\",INDEX(INDIRECT(\"Languages!Table7[#Data]\"),MATCH(H4,INDIRECT(\"Languages!Table7[English]\"),0),MATCH(Languages!$A$2,INDIRECT(\"Languages!Table7[#Headers]\"),0)),\"\")","v":""},{"$f":"IF(Languages!$A$2<>\"English\",INDEX(INDIRECT(\"Languages!Table7[#Data]\"),MATCH(I4,INDIRECT(\"Languages!Table7[English]\"),0),MATCH(Languages!$A$2,INDIRECT(\"Languages!Table7[#Headers]\"),0)),\"\")","v":""},{"$f":"IF(Languages!$A$2<>\"English\",INDEX(INDIRECT(\"Languages!Table7[#Data]\"),MATCH(J4,INDIRECT(\"Languages!Table7[English]\"),0),MATCH(Languages!$A$2,INDIRECT(\"Languages!Table7[#Headers]\"),0)),\"\")","v":""},{"$f":"IF(Languages!$A$2<>\"English\",INDEX(INDIRECT(\"Languages!Table7[#Data]\"),MATCH(K4,INDIRECT(\"Languages!Table7[English]\"),0),MATCH(Languages!$A$2,INDIRECT(\"Languages!Table7[#Headers]\"),0)),\"\")","v":""},{"$f":"IF(Languages!$A$2<>\"English\",INDEX(INDIRECT(\"Languages!Table7[#Data]\"),MATCH(L4,INDIRECT(\"Languages!Table7[English]\"),0),MATCH(Languages!$A$2,INDIRECT(\"Languages!Table7[#Headers]\"),0)),\"\")","v":""},{"$f":"IF(Languages!$A$2<>\"English\",INDEX(INDIRECT(\"Languages!Table7[#Data]\"),MATCH(M4,INDIRECT(\"Languages!Table7[English]\"),0),MATCH(Languages!$A$2,INDIRECT(\"Languages!Table7[#Headers]\"),0)),\"\")","v":""},{"$f":"IF(Languages!$A$2<>\"English\",INDEX(INDIRECT(\"Languages!Table7[#Data]\"),MATCH(N4,INDIRECT(\"Languages!Table7[English]\"),0),MATCH(Languages!$A$2,INDIRECT(\"Languages!Table7[#Headers]\"),0)),\"\")","v":""},{"$f":"IF(Languages!$A$2<>\"English\",INDEX(INDIRECT(\"Languages!Table7[#Data]\"),MATCH(O4,INDIRECT(\"Languages!Table7[English]\"),0),MATCH(Languages!$A$2,INDIRECT(\"Languages!Table7[#Headers]\"),0)),\"\")","v":""},{"$f":"IF(Languages!$A$2<>\"English\",INDEX(INDIRECT(\"Languages!Table7[#Data]\"),MATCH(P4,INDIRECT(\"Languages!Table7[English]\"),0),MATCH(Languages!$A$2,INDIRECT(\"Languages!Table7[#Headers]\"),0)),\"\")","v":""},{"$f":"IF(Languages!$A$2<>\"English\",INDEX(INDIRECT(\"Languages!Table7[#Data]\"),MATCH(Q4,INDIRECT(\"Languages!Table7[English]\"),0),MATCH(Languages!$A$2,INDIRECT(\"Languages!Table7[#Headers]\"),0)),\"\")","v":""},{"$f":"IF(Languages!$A$2<>\"English\",INDEX(INDIRECT(\"Languages!Table7[#Data]\"),MATCH(R4,INDIRECT(\"Languages!Table7[English]\"),0),MATCH(Languages!$A$2,INDIRECT(\"Languages!Table7[#Headers]\"),0)),\"\")","v":""},{"$f":"IF(Languages!$A$2<>\"English\",INDEX(INDIRECT(\"Languages!Table7[#Data]\"),MATCH(S4,INDIRECT(\"Languages!Table7[English]\"),0),MATCH(Languages!$A$2,INDIRECT(\"Languages!Table7[#Headers]\"),0)),\"\")","v":""},{"$f":"IF(Languages!$A$2<>\"English\",INDEX(INDIRECT(\"Languages!Table7[#Data]\"),MATCH(T4,INDIRECT(\"Languages!Table7[English]\"),0),MATCH(Languages!$A$2,INDIRECT(\"Languages!Table7[#Headers]\"),0)),\"\")","v":""}]
["Company","Farm","Flock ID","Breed","Hen Age (weeks)","Egg Age (days)","Setter No","Date Candled","No of Eggs Set","No Eggs Removed","Date Set","Infertile","24h Early Dead","48h Early Dead","Blood Ring","Black Eye","Contaminated","Poor Shell Quality","Cracked Shell","Notes"]

{"sheet":"CandlingChart","index":5,"n_rows":4,"n_cols":3,"rows_kept":4,"cut":false,"hidden":false,"merged":[[2,1,2,2]]}
[]
[null,{"$f":"Languages!A67","v":"Candling Monitoring"}]
[null,{"$f":"IF(Languages!$A$2<>\"English\",INDEX(INDIRECT(\"Languages!Table7[#Data]\"),MATCH(B4,INDIRECT(\"Languages!Table7[English]\"),0),MATCH(Languages!$A$2,INDIRECT(\"Languages!Table7[#Headers]\"),0)),\"\")","v":""}]
[null,"Flock ID","All"]

{"sheet":"DebrisInput","index":6,"n_rows":49,"n_cols":21,"rows_kept":49,"cut":false,"hidden":false,"merged":[[39,2,42,2],[39,3,39,5],[39,7,39,9],[43,7,43,9],[43,3,43,5],[40,3,40,5],[41,3,41,5],[42,3,42,5],[31,2,31,5],[28,2,28,5],[47,2,47,5],[48,2,48,5],[48,6,48,20],[45,7,45,9],[46,7,46,9],[47,7,47,9],[45,3,45,5],[40,7,40,9],[43,2,45,2],[46,2,46,5],[44,7,44,9],[44,3,44,5],[41,7,41,9],[42,7,42,9],[38,2,38,5],[29,7,29,9],[30,7,30,9],[31,7,31,9],[34,7,34,9],[38,7,38,9],[37,2,37,5],[37,7,37,9],[35,7,35,9],[36,7,36,9],[32,2,32,5],[33,2,33,5],[34,2,34,5],[35,2,35,5],[36,2,36,5],[29,2,29,5],[17,2,17,3],[18,2,18,3],[32,7,32,9],[33,7,33,9],[20,2,20,3],[19,5,19,6],[17,5,17,6],[18,5,18,6],[21,2,21,3],[24,1,24,21],[26,7,26,9],[27,7,27,9],[28,7,28,9],[26,2,26,5],[27,2,27,5],[30,2,30,5],[8,2,8,3],[11,5,11,6],[9,2,9,3],[12,5,12,6],[16,5,16,6],[11,2,11,3],[12,2,12,3],[14,5,14,6],[9,5,9,6],[8,5,8,6],[15,5,15,6],[14,2,14,3],[15,2,15,3],[3,9,3,21],[5,2,5,3],[5,5,5,6],[6,2,6,3],[6,5,6,6],[3,1,3,7]]}
[]
[null,{"$f":"Languages!A68","v":"Simple Hatch Debris Monitoring"}]
[]
[null,{"$f":"Languages!A11","v":"General Information"},null,null,null,null,null,null,null,{"$f":"Languages!A12","v":"Data Summary"}]
[]
[null,null,{"$f":"Languages!A13","v":"Company"},null,null,{"$f":"Languages!A19","v":"Setter No"}]
[null,null,{"$f":"Start!L4","v":"Aviagen"}]
[]
[null,null,{"$f":"Languages!A14","v":"Farm"},null,null,{"$f":"Languages!A20","v":"Hatcher No"}]
[]
[]
[null,null,{"$f":"Languages!A15","v":"Flock ID"},null,null,{"$f":"Languages!A21","v":"Date Set"}]
[]
[]
[null,null,{"$f":"Languages!A16","v":"Breed"},null,null,{"$f":"Languages!A22","v":"Date Candled"}]
[]
[null,null,null,null,null,{"$f":"IF(F13<>\"\",IF(F16<>\"\",IF(ABS(F16-F13)>1,\"Age @candled: \" & F16-F13 & \" days\",\"Age @candled: \" & F16-F13 & \" day\"),\"\"),\"\")","v":""}]
[null,null,{"$f":"Languages!A17","v":"Hen Age (weeks)"},null,null,{"$f":"Languages!A24","v":"Date Hatched"}]
[]
[null,null,null,null,null,{"$f":"IF(F13<>\"\",IF(F19<>\"\",IF(ABS(F19-F13)>1,\"Age @hatched: \" & F19-F13 & \" days\",\"Age @hatched: \" & F19-F13 & \" day\"),\"\"),\"\")","v":""}]
[null,null,{"$f":"Languages!A18","v":"Egg Age (days)"}]
[]
[]
[]
[null,{"$f":"Languages!A5","v":"Data Input"}]
[]
[null,null,{"$f":"Languages!A75","v":"Tray"},null,null,null,1,2,null,null,3,4,5,6,7,8,9,10,"Sum",{"$f":"Languages!A35","v":"% Eggs Set"},{"$f":"Languages!A36","v":"Top Quartile %"}]
[null,null,{"$f":"Languages!A25","v":"No of Eggs Set"},null,null,null,null,null,null,null,null,null,null,null,null,null,null,null,{"$f":"SUM(G28:R28)","v":0},"-","-"]
[null,null,{"$f":"Languages!A57","v":"No of Chicks Hatched"},null,null,null,null,null,null,null,null,null,null,null,null,null,null,null,{"$f":"SUM(G29:R29)","v":0},"-","-"]
[null,null,{"$f":"Languages!A26","v":"No Eggs Removed"},null,null,null,null,null,null,null,null,null,null,null,null,null,null,null,0,{"$f":"IF(OR($S$28=0,$S30=0),\"\",$S30/$S$28*100)","v":""},"-"]
[null,null,{"$f":"Languages!A27","v":"Infertile"},null,null,null,null,null,null,null,null,null,null,null,null,null,null,null,0,"",{"$f":"IF(C19=\"\",\"\",VLOOKUP($C$19,TQ!$C$3:$Q$6,2,TRUE))","v":""}]
[null,null,{"$f":"Languages!A39","v":"Early Dead (0-7d)"},null,null,null,null,null,null,null,null,null,null,null,null,null,null,null,0,"",{"$f":"IF(C19=\"\",\"\",VLOOKUP($C$19,TQ!$C$3:$Q$6,13,TRUE))","v":""}]
[null,null,{"$f":"Languages!A40","v":"Mid Dead (8-14d)"},null,null,null,null,null,null,null,null,null,null,null,null,null,null,null,0,"",{"$f":"IF(C19=\"\",\"\",VLOOKUP($C$19,TQ!$C$3:$Q$6,14,TRUE))","v":""}]
[null,null,{"$f":"Languages!A41","v":"Late Dead (15-21d)"},null,null,null,null,null,null,null,null,null,null,null,null,null,null,null,0,"",{"$f":"IF(C19=\"\",\"\",VLOOKUP($C$19,TQ!$C$3:$Q$6,15,TRUE))","v":""}]
[null,null,{"$f":"Languages!A42","v":"External Pip"},null,null,null,null,null,null,null,null,null,null,null,null,null,null,null,0,"",{"$f":"IF(C19=\"\",\"\",VLOOKUP($C$19,TQ!$C$3:$Q$6,10,TRUE))","v":""}]
[null,null,{"$f":"Languages!A32","v":"Contaminated"},null,null,null,null,null,null,null,null,null,null,null,null,null,null,null,0,"",{"$f":"IF(C19=\"\",\"\",VLOOKUP($C$19,TQ!$C$3:$Q$6,12,TRUE))","v":""}]
[null,null,{"$f":"Languages!A43","v":"Dead and Cull Chicks"},null,null,null,null,null,null,null,null,null,null,null,null,null,null,null,0,""]
[null,null,{"$f":"Languages!A33","v":"Poor Shell Quality"},null,null,null,null,null,null,null,null,null,null,null,null,null,null,null,0,""]
[null,null,{"$f":"Languages!A34","v":"Cracked Shell"}]
[null,null,{"$f":"Languages!A107","v":"Mal-positions"},{"$f":"Languages!A44","v":"Head in Small End of Egg"}]
[null,null,null,{"$f":"Languages!A45","v":"Head to Left"}]
[null,null,null,{"$f":"Languages!A46","v":"Feet over Head"}]
[null,null,null,{"$f":"Languages!A47","v":"Beak above Right Wing"}]
[null,null,{"$f":"Languages!A108","v":"Mal-formations"},{"$f":"Languages!A48","v":"Exposed Brain / Eye Defect"}]
[null,null,null,{"$f":"Languages!A49","v":"Extra Limbs"}]
[null,null,null,{"$f":"Languages!A50","v":"Ectopic Viscera"}]
[null,null,{"$f":"Languages!A51","v":"Excess Albumen"}]
[null,null,{"$f":"Languages!A52","v":"Dry Egg Content"}]
[null,null,{"$f":"Languages!A37","v":"Notes"}]

{"sheet":"FlockIDList","index":7,"n_rows":7,"n_cols":3,"rows_kept":7,"cut":false,"hidden":true,"merged":[]}
["All",null,"All"]
[1,null,1]
["Mia",null,2]
["Mia0503",null,"Mia"]
["Mia0503_1"]
["Mia0503_2"]
["Mia0503_3"]

{"sheet":"CandlingPivotInfertile","index":8,"n_rows":14,"n_cols":8,"rows_kept":14,"cut":false,"hidden":true,"merged":[]}
[]
[]
["Average of Infertile","Column Labels"]
["Row Labels",1,"Mia","Mia0503","Mia0503_1","Mia0503_2","Mia0503_3","Grand Total"]
[38,null,null,null,null,1,null,1]
[40,null,2,null,null,null,1,1.5]
[41,null,null,null,1,null,null,1]
[42,null,null,1,null,null,null,1]
[27,7,null,null,null,null,null,7]
[28,null,2,null,null,null,null,2]
[35,null,1,null,null,null,null,1]
[36,null,1,null,null,null,null,1]
[37,null,1,null,null,null,null,1]
["Grand Total",7,1.25,1,1,1,1,1.6153846153846154]

{"sheet":"CandlingPivot24","index":9,"n_rows":14,"n_cols":8,"rows_kept":14,"cut":false,"hidden":true,"merged":[]}
[]
[]
["Average of 24h Early Dead","Column Labels"]
["Row Labels",1,"Mia","Mia0503","Mia0503_1","Mia0503_2","Mia0503_3","Grand Total"]
[38,null,null,null,null,1,null,1]
[40,null,1,null,null,null,0,0.5]
[41,null,null,null,1,null,null,1]
[42,null,null,1,null,null,null,1]
[27,1,null,null,null,null,null,1]
[28,null,2,null,null,null,null,2]
[35,null,1,null,null,null,null,1]
[36,null,1,null,null,null,null,1]
[37,null,1,null,null,null,null,1]
["Grand Total",1,1.125,1,1,1,0,1]

{"sheet":"CandlingPivot48","index":10,"n_rows":14,"n_cols":8,"rows_kept":14,"cut":false,"hidden":true,"merged":[]}
[]
[]
["Average of 48h Early Dead","Column Labels"]
["Row Labels",1,"Mia","Mia0503","Mia0503_1","Mia0503_2","Mia0503_3","Grand Total"]
[38,null,null,null,null,0,null,0]
[40,null,1,null,null,null,0,0.5]
[41,null,null,null,0,null,null,0]
[42,null,null,0,null,null,null,0]
[27,1,null,null,null,null,null,1]
[28,null,2,null,null,null,null,2]
[35,null,1,null,null,null,null,1]
[36,null,1,null,null,null,null,1]
[37,null,1,null,null,null,null,1]
["Grand Total",1,1.125,0,0,0,0,0.76923076923076927]

{"sheet":"DebrisData","index":11,"n_rows":4,"n_cols":33,"rows_kept":4,"cut":false,"hidden":false,"merged":[]}
[]
[{"$f":"Languages!A68","v":"Simple Hatch Debris Monitoring"}]
[{"$f":"IF(Languages!$A$2<>\"English\",INDEX(INDIRECT(\"Languages!Table7[#Data]\"),MATCH(A4,INDIRECT(\"Languages!Table7[English]\"),0),MATCH(Languages!$A$2,INDIRECT(\"Languages!Table7[#Headers]\"),0)),\"\")","v":""},{"$f":"IF(Languages!$A$2<>\"English\",INDEX(INDIRECT(\"Languages!Table7[#Data]\"),MATCH(B4,INDIRECT(\"Languages!Table7[English]\"),0),MATCH(Languages!$A$2,INDIRECT(\"Languages!Table7[#Headers]\"),0)),\"\")","v":""},{"$f":"IF(Languages!$A$2<>\"English\",INDEX(INDIRECT(\"Languages!Table7[#Data]\"),MATCH(C4,INDIRECT(\"Languages!Table7[English]\"),0),MATCH(Languages!$A$2,INDIRECT(\"Languages!Table7[#Headers]\"),0)),\"\")","v":""},{"$f":"IF(Languages!$A$2<>\"English\",INDEX(INDIRECT(\"Languages!Table7[#Data]\"),MATCH(D4,INDIRECT(\"Languages!Table7[English]\"),0),MATCH(Languages!$A$2,INDIRECT(\"Languages!Table7[#Headers]\"),0)),\"\")","v":""},{"$f":"IF(Languages!$A$2<>\"English\",INDEX(INDIRECT(\"Languages!Table7[#Data]\"),MATCH(E4,INDIRECT(\"Languages!Table7[English]\"),0),MATCH(Languages!$A$2,INDIRECT(\"Languages!Table7[#Headers]\"),0)),\"\")","v":""},{"$f":"IF(Languages!$A$2<>\"English\",INDEX(INDIRECT(\"Languages!Table7[#Data]\"),MATCH(F4,INDIRECT(\"Languages!Table7[English]\"),0),MATCH(Languages!$A$2,INDIRECT(\"Languages!Table7[#Headers]\"),0)),\"\")","v":""},{"$f":"IF(Languages!$A$2<>\"English\",INDEX(INDIRECT(\"Languages!Table7[#Data]\"),MATCH(G4,INDIRECT(\"Languages!Table7[English]\"),0),MATCH(Languages!$A$2,INDIRECT(\"Languages!Table7[#Headers]\"),0)),\"\")","v":""},{"$f":"IF(Languages!$A$2<>\"English\",INDEX(INDIRECT(\"Languages!Table7[#Data]\"),MATCH(H4,INDIRECT(\"Languages!Table7[English]\"),0),MATCH(Languages!$A$2,INDIRECT(\"Languages!Table7[#Headers]\"),0)),\"\")","v":""},{"$f":"IF(Languages!$A$2<>\"English\",INDEX(INDIRECT(\"Languages!Table7[#Data]\"),MATCH(I4,INDIRECT(\"Languages!Table7[English]\"),0),MATCH(Languages!$A$2,INDIRECT(\"Languages!Table7[#Headers]\"),0)),\"\")","v":""},{"$f":"IF(Languages!$A$2<>\"English\",INDEX(INDIRECT(\"Languages!Table7[#Data]\"),MATCH(J4,INDIRECT(\"Languages!Table7[English]\"),0),MATCH(Languages!$A$2,INDIRECT(\"Languages!Table7[#Headers]\"),0)),\"\")","v":""},{"$f":"IF(Languages!$A$2<>\"English\",INDEX(INDIRECT(\"Languages!Table7[#Data]\"),MATCH(K4,INDIRECT(\"Languages!Table7[English]\"),0),MATCH(Languages!$A$2,INDIRECT(\"Languages!Table7[#Headers]\"),0)),\"\")","v":""},{"$f":"IF(Languages!$A$2<>\"English\",INDEX(INDIRECT(\"Languages!Table7[#Data]\"),MATCH(L4,INDIRECT(\"Languages!Table7[English]\"),0),MATCH(Languages!$A$2,INDIRECT(\"Languages!Table7[#Headers]\"),0)),\"\")","v":""},{"$f":"IF(Languages!$A$2<>\"English\",INDEX(INDIRECT(\"Languages!Table7[#Data]\"),MATCH(M4,INDIRECT(\"Languages!Table7[English]\"),0),MATCH(Languages!$A$2,INDIRECT(\"Languages!Table7[#Headers]\"),0)),\"\")","v":""},{"$f":"IF(Languages!$A$2<>\"English\",INDEX(INDIRECT(\"Languages!Table7[#Data]\"),MATCH(N4,INDIRECT(\"Languages!Table7[English]\"),0),MATCH(Languages!$A$2,INDIRECT(\"Languages!Table7[#Headers]\"),0)),\"\")","v":""},{"$f":"IF(Languages!$A$2<>\"English\",INDEX(INDIRECT(\"Languages!Table7[#Data]\"),MATCH(O4,INDIRECT(\"Languages!Table7[English]\"),0),MATCH(Languages!$A$2,INDIRECT(\"Languages!Table7[#Headers]\"),0)),\"\")","v":""},{"$f":"IF(Languages!$A$2<>\"English\",INDEX(INDIRECT(\"Languages!Table7[#Data]\"),MATCH(P4,INDIRECT(\"Languages!Table7[English]\"),0),MATCH(Languages!$A$2,INDIRECT(\"Languages!Table7[#Headers]\"),0)),\"\")","v":""},{"$f":"IF(Languages!$A$2<>\"English\",INDEX(INDIRECT(\"Languages!Table7[#Data]\"),MATCH(Q4,INDIRECT(\"Languages!Table7[English]\"),0),MATCH(Languages!$A$2,INDIRECT(\"Languages!Table7[#Headers]\"),0)),\"\")","v":""},{"$f":"IF(Languages!$A$2<>\"English\",INDEX(INDIRECT(\"Languages!Table7[#Data]\"),MATCH(R4,INDIRECT(\"Languages!Table7[English]\"),0),MATCH(Languages!$A$2,INDIRECT(\"Languages!Table7[#Headers]\"),0)),\"\")","v":""},{"$f":"IF(Languages!$A$2<>\"English\",INDEX(INDIRECT(\"Languages!Table7[#Data]\"),MATCH(S4,INDIRECT(\"Languages!Table7[English]\"),0),MATCH(Languages!$A$2,INDIRECT(\"Languages!Table7[#Headers]\"),0)),\"\")","v":""},{"$f":"IF(Languages!$A$2<>\"English\",INDEX(INDIRECT(\"Languages!Table7[#Data]\"),MATCH(T4,INDIRECT(\"Languages!Table7[English]\"),0),MATCH(Languages!$A$2,INDIRECT(\"Languages!Table7[#Headers]\"),0)),\"\")","v":""},{"$f":"IF(Languages!$A$2<>\"English\",INDEX(INDIRECT(\"Languages!Table7[#Data]\"),MATCH(U4,INDIRECT(\"Languages!Table7[English]\"),0),MATCH(Languages!$A$2,INDIRECT(\"Languages!Table7[#Headers]\"),0)),\"\")","v":""},{"$f":"IF(Languages!$A$2<>\"English\",INDEX(INDIRECT(\"Languages!Table7[#Data]\"),MATCH(V4,INDIRECT(\"Languages!Table7[English]\"),0),MATCH(Languages!$A$2,INDIRECT(\"Languages!Table7[#Headers]\"),0)),\"\")","v":""},{"$f":"IF(Languages!$A$2<>\"English\",INDEX(INDIRECT(\"Languages!Table7[#Data]\"),MATCH(W4,INDIRECT(\"Languages!Table7[English]\"),0),MATCH(Languages!$A$2,INDIRECT(\"Languages!Table7[#Headers]\"),0)),\"\")","v":""},{"$f":"IF(Languages!$A$2<>\"English\",INDEX(INDIRECT(\"Languages!Table7[#Data]\"),MATCH(X4,INDIRECT(\"Languages!Table7[English]\"),0),MATCH(Languages!$A$2,INDIRECT(\"Languages!Table7[#Headers]\"),0)),\"\")","v":""},{"$f":"IF(Languages!$A$2<>\"English\",INDEX(INDIRECT(\"Languages!Table7[#Data]\"),MATCH(Y4,INDIRECT(\"Languages!Table7[English]\"),0),MATCH(Languages!$A$2,INDIRECT(\"Languages!Table7[#Headers]\"),0)),\"\")","v":""},{"$f":"IF(Languages!$A$2<>\"English\",INDEX(INDIRECT(\"Languages!Table7[#Data]\"),MATCH(Z4,INDIRECT(\"Languages!Table7[English]\"),0),MATCH(Languages!$A$2,INDIRECT(\"Languages!Table7[#Headers]\"),0)),\"\")","v":""},{"$f":"IF(Languages!$A$2<>\"English\",INDEX(INDIRECT(\"Languages!Table7[#Data]\"),MATCH(AA4,INDIRECT(\"Languages!Table7[English]\"),0),MATCH(Languages!$A$2,INDIRECT(\"Languages!Table7[#Headers]\"),0)),\"\")","v":""},{"$f":"IF(Languages!$A$2<>\"English\",INDEX(INDIRECT(\"Languages!Table7[#Data]\"),MATCH(AB4,INDIRECT(\"Languages!Table7[English]\"),0),MATCH(Languages!$A$2,INDIRECT(\"Languages!Table7[#Headers]\"),0)),\"\")","v":""},{"$f":"IF(Languages!$A$2<>\"English\",INDEX(INDIRECT(\"Languages!Table7[#Data]\"),MATCH(AC4,INDIRECT(\"Languages!Table7[English]\"),0),MATCH(Languages!$A$2,INDIRECT(\"Languages!Table7[#Headers]\"),0)),\"\")","v":""},{"$f":"IF(Languages!$A$2<>\"English\",INDEX(INDIRECT(\"Languages!Table7[#Data]\"),MATCH(AD4,INDIRECT(\"Languages!Table7[English]\"),0),MATCH(Languages!$A$2,INDIRECT(\"Languages!Table7[#Headers]\"),0)),\"\")","v":""},{"$f":"IF(Languages!$A$2<>\"English\",INDEX(INDIRECT(\"Languages!Table7[#Data]\"),MATCH(AE4,INDIRECT(\"Languages!Table7[English]\"),0),MATCH(Languages!$A$2,INDIRECT(\"Languages!Table7[#Headers]\"),0)),\"\")","v":""},{"$f":"IF(Languages!$A$2<>\"English\",INDEX(INDIRECT(\"Languages!Table7[#Data]\"),MATCH(AF4,INDIRECT(\"Languages!Table7[English]\"),0),MATCH(Languages!$A$2,INDIRECT(\"Languages!Table7[#Headers]\"),0)),\"\")","v":""},{"$f":"IF(Languages!$A$2<>\"English\",INDEX(INDIRECT(\"Languages!Table7[#Data]\"),MATCH(AG4,INDIRECT(\"Languages!Table7[English]\"),0),MATCH(Languages!$A$2,INDIRECT(\"Languages!Table7[#Headers]\"),0)),\"\")","v":""}]
["Company","Farm","Flock ID","Breed","Hen Age (weeks)","Egg Age (days)","Setter No","Hatcher No","Date Set","Date Candled","Date Hatched","No of Eggs Set","No of chicks hatched","No Eggs Removed","Infertile","Early Dead (0-7d)","Mid Dead (8-14d)","Late Dead (15-21d)","External Pip","Contaminated","Dead and Cull Chicks","Poor Shell Quality","Cracked Shell","Head in Small End of Egg","Head to Left","Feet over Head","Beak above right wing","Exposed Brain / Eye Defect","Extra Limbs","Ectopic Viscera","Excess Albumen","Dry Egg Content","Notes"]

{"sheet":"DebrisChart","index":12,"n_rows":4,"n_cols":3,"rows_kept":4,"cut":false,"hidden":false,"merged":[[2,1,2,2]]}
[]
[null,{"$f":"Languages!A68","v":"Simple Hatch Debris Monitoring"}]
[null,{"$f":"IF(Languages!$A$2<>\"English\",INDEX(INDIRECT(\"Languages!Table7[#Data]\"),MATCH(B4,INDIRECT(\"Languages!Table7[English]\"),0),MATCH(Languages!$A$2,INDIRECT(\"Languages!Table7[#Headers]\"),0)),\"\")","v":""}]
[null,"Flock ID","All"]

{"sheet":"DebrisPivotInfertile","index":13,"n_rows":19,"n_cols":5,"rows_kept":19,"cut":false,"hidden":true,"merged":[]}
[]
[]
["Average of Infertile","Column Labels"]
["Row Labels",1,2,"Mia","Grand Total"]
[26,1,null,null,1]
[28,null,2,null,2]
[30,null,2,null,2]
[31,null,3,null,3]
[32,null,3,null,3]
[33,null,2,null,2]
[34,null,2,null,2]
[35,null,2,1,1.5]
[36,null,2,1,1.5]
[37,null,2,1,1.5]
[38,null,2,1,1.5]
[40,null,null,1.5,1.5]
[50,null,2,null,2]
[60,null,2,null,2]
["Grand Total",1,2.1666666666666665,1.1666666666666667,1.7894736842105263]

{"sheet":"DebrisPivotEarly","index":14,"n_rows":19,"n_cols":5,"rows_kept":19,"cut":false,"hidden":true,"merged":[]}
[]
[]
["Average of Early Dead (0-7d)","Column Labels"]
["Row Labels",1,2,"Mia","Grand Total"]
[26,1,null,null,1]
[28,null,1,null,1]
[30,null,1,null,1]
[31,null,1,null,1]
[32,null,2,null,2]
[33,null,2,null,2]
[34,null,2,null,2]
[35,null,2,1,1.5]
[36,null,2,1,1.5]
[37,null,2,1,1.5]
[38,null,2,1,1.5]
[40,null,null,1.5,1.5]
[50,null,1,null,1]
[60,null,1,null,1]
["Grand Total",1,1.5833333333333333,1.1666666666666667,1.4210526315789473]

{"sheet":"DebrisPivotMid","index":15,"n_rows":19,"n_cols":5,"rows_kept":19,"cut":false,"hidden":true,"merged":[]}
[]
[]
["Average of Mid Dead (8-14d)","Column Labels"]
["Row Labels",1,2,"Mia","Grand Total"]
[26,1,null,null,1]
[28,null,1,null,1]
[30,null,1,null,1]
[31,null,1,null,1]
[32,null,1,null,1]
[33,null,1,null,1]
[34,null,1,null,1]
[35,null,2,1,1.5]
[36,null,2,1,1.5]
[37,null,2,1,1.5]
[38,null,2,1,1.5]
[40,null,null,1.5,1.5]
[50,null,1,null,1]
[60,null,1,null,1]
["Grand Total",1,1.3333333333333333,1.1666666666666667,1.263157894736842]

{"sheet":"DebrisPivotLate","index":16,"n_rows":19,"n_cols":5,"rows_kept":19,"cut":false,"hidden":true,"merged":[]}
[]
[]
["Average of Late Dead (15-21d)","Column Labels"]
["Row Labels",1,2,"Mia","Grand Total"]
[26,0,null,null,0]
[28,null,1,null,1]
[30,null,1,null,1]
[31,null,1,null,1]
[32,null,1,null,1]
[33,null,1,null,1]
[34,null,2,null,2]
[35,null,2,1,1.5]
[36,null,2,1,1.5]
[37,null,2,1,1.5]
[38,null,2,1,1.5]
[40,null,null,1.5,1.5]
[50,null,1,null,1]
[60,null,1,null,1]
["Grand Total",0,1.4166666666666667,1.1666666666666667,1.263157894736842]

{"sheet":"WeightInput","index":17,"n_rows":40,"n_cols":20,"rows_kept":40,"cut":false,"hidden":false,"merged":[[3,1,3,7],[3,9,3,20],[5,2,5,3],[5,5,5,6],[6,2,6,3],[6,5,6,6],[8,2,8,3],[11,5,11,6],[9,2,9,3],[12,5,12,6],[11,2,11,3],[12,2,12,3],[8,5,8,6],[9,5,9,6],[14,2,14,3],[15,2,15,3],[17,2,17,3],[18,2,18,3],[20,2,20,3],[30,7,30,9],[28,2,28,5],[29,2,29,5],[30,2,30,5],[18,5,18,6],[26,2,26,5],[27,2,27,5],[28,7,28,9],[21,2,21,3],[24,1,24,20],[26,7,26,9],[27,7,27,9],[29,7,29,9],[34,7,34,9],[37,7,37,9],[34,3,34,5],[32,2,34,2],[35,2,35,5],[36,2,36,5],[31,7,31,9],[32,7,32,9],[33,7,33,9],[31,2,31,5],[32,3,32,5],[33,3,33,5],[40,2,40,19],[37,2,37,5],[38,2,38,5],[39,2,39,5],[35,7,35,9],[36,7,36,9],[39,6,39,19],[38,7,38,9],[13,5,13,6],[16,5,16,6],[19,5,19,6],[14,5,14,6],[15,5,15,6],[17,5,17,6]]}
[]
[null,{"$f":"Languages!A66","v":"Egg & Chick Weight Monitoring"}]
[]
[null,{"$f":"Languages!A11","v":"General Information"},null,null,null,null,null,null,null,{"$f":"Languages!A12","v":"Data Summary"}]
[]
[null,null,{"$f":"Languages!A13","v":"Company"},null,null,{"$f":"Languages!A19","v":"Setter No"}]
[null,null,{"$f":"Start!L4","v":"Aviagen"}]
[null,null,null,null,null,null,null,null,null,null,null,"Yield","Evap Rate"]
[null,null,{"$f":"Languages!A14","v":"Farm"},null,null,{"$f":"Languages!A20","v":"Hatcher No"},null,null,null,null,null,67,10.5]
[null,null,null,null,null,null,null,null,null,null,null,2,2]
[null,null,null,null,null,null,null,null,null,null,null,31,87.5]
[null,null,{"$f":"Languages!A15","v":"Flock ID"},null,null,{"$f":"Languages!A21","v":"Date Set"},null,null,null,null,null,0,null,0]
[]
[]
[null,null,{"$f":"Languages!A16","v":"Breed"},null,null,{"$f":"Languages!A23","v":"Date Transferred"}]
[]
[null,null,null,null,null,{"$f":"IF(F13<>\"\",IF(F16<>\"\",IF(ABS(F16-F13)>1,\"Age @transferred: \" & F16-F13 & \" days\",\"Age @transferred: \" & F16-F13 & \" day\"),\"\"),\"\")","v":""}]
[null,null,{"$f":"Languages!A17","v":"Hen Age (weeks)"},null,null,{"$f":"Languages!A24","v":"Date Hatched"}]
[]
[null,null,null,null,null,{"$f":"IF(F13<>\"\",IF(F19<>\"\",IF(ABS(F19-F13)>1,\"Age @ hatched: \" & F19-F13 & \" days\",\"Age @ hatched: \" & F19-F13 & \" day\"),\"\"),\"\")","v":""}]
[null,null,{"$f":"Languages!A18","v":"Egg Age (days)"}]
[]
[]
[]
[null,{"$f":"Languages!A5","v":"Data Input"}]
[]
[null,null,{"$f":"Languages!A75","v":"Tray"},null,null,null,1,2,null,null,3,4,5,6,7,8,9,10,"Sum",{"$f":"Languages!A35","v":"% Eggs Set"}]
[null,null,{"$f":"Languages!A25","v":"No of Eggs Set"},null,null,null,null,null,null,null,null,null,null,null,null,null,null,null,{"$f":"SUM(G28:R28)","v":0},"-"]
[null,null,{"$f":"Languages!A53","v":"Weight of Empty Tray"},null,null,null,null,null,null,null,null,null,null,null,null,null,null,null,0,"-"]
[null,null,{"$f":"Languages!A54","v":"Weight of Full Tray"},null,null,null,null,null,null,null,null,null,null,null,null,null,null,null,0,"-"]
[null,null,{"$f":"Languages!A55","v":"Transfer Weight"},null,null,null,null,null,null,null,null,null,null,null,null,null,null,null,0,"-"]
[null,null,{"$f":"Languages!A56","v":"Total Chick Weight"},null,null,null,null,null,null,null,null,null,null,null,null,null,null,null,0,"-"]
[null,null,{"$f":"Languages!A109","v":"Hatch Break-down"},{"$f":"Languages!A57","v":"No of Chicks Hatched"},null,null,null,null,null,null,null,null,null,null,null,null,null,null,0,{"$f":"IF(OR($S$28=0,$S33=0),\"\",$S33/$S$28*100)","v":""}]
[null,null,null,{"$f":"Languages!A58","v":"Culls and Deads"},null,null,null,null,null,null,null,null,null,null,null,null,null,null,0,{"$f":"IF(OR($S$28=0,$S34=0),\"\",$S34/$S$28*100)","v":""}]
[null,null,null,{"$f":"Languages!A59","v":"Unhatched Eggs"},null,null,null,null,null,null,null,null,null,null,null,null,null,null,0,{"$f":"IF(OR($S$28=0,$S35=0),\"\",$S35/$S$28*100)","v":""}]
[null,null,{"$f":"Languages!A60","v":"Egg Weight Loss (%)"},null,null,null,{"$f":"IF(ISERROR(IF(OR(G30=\"\",G31=\"\"),\"\",((((G30-G31)/(G30-G29)))/($F$16-$F$13))*18)),\"\",IF(OR(G30=\"\",G31=\"\"),\"\",((((G30-G31)/(G30-G29)))/($F$16-$F$13))*18))","v":""},{"$f":"IF(ISERROR(IF(OR(H30=\"\",H31=\"\"),\"\",((((H30-H31)/(H30-H29)))/($F$16-$F$13))*18)),\"\",IF(OR(H30=\"\",H31=\"\"),\"\",((((H30-H31)/(H30-H29)))/($F$16-$F$13))*18))","v":""},null,null,{"$f":"IF(ISERROR(IF(OR(K30=\"\",K31=\"\"),\"\",((((K30-K31)/(K30-K29)))/($F$16-$F$13))*18)),\"\",IF(OR(K30=\"\",K31=\"\"),\"\",((((K30-K31)/(K30-K29)))/($F$16-$F$13))*18))","v":""},{"$f":"IF(ISERROR(IF(OR(L30=\"\",L31=\"\"),\"\",((((L30-L31)/(L30-L29)))/($F$16-$F$13))*18)),\"\",IF(OR(L30=\"\",L31=\"\"),\"\",((((L30-L31)/(L30-L29)))/($F$16-$F$13))*18))","v":""},{"$f":"IF(ISERROR(IF(OR(M30=\"\",M31=\"\"),\"\",((((M30-M31)/(M30-M29)))/($F$16-$F$13))*18)),\"\",IF(OR(M30=\"\",M31=\"\"),\"\",((((M30-M31)/(M30-M29)))/($F$16-$F$13))*18))","v":""},"","","","","",{"$f":"IF(ISERROR(IF(OR(S30=\"\",S31=\"\"),\"\",((((S30-S31)/(S30-S29)))/($F$16-$F$13))*18)),\"\",IF(OR(S30=\"\",S31=\"\"),\"\",((((S30-S31)/(S30-S29)))/($F$16-$F$13))*18))","v":""},"-"]
[null,null,{"$f":"Languages!A61","v":"Mean Egg Weight (g)"},null,null,null,{"$f":"IF(ISERROR(IF(OR(G29=\"\",G30=\"\"),\"\",(G30-G29)/G28)),\"\",IF(OR(G29=\"\",G30=\"\"),\"\",(G30-G29)/G28))","v":""},{"$f":"IF(ISERROR(IF(OR(H29=\"\",H30=\"\"),\"\",(H30-H29)/H28)),\"\",IF(OR(H29=\"\",H30=\"\"),\"\",(H30-H29)/H28))","v":""},null,null,{"$f":"IF(ISERROR(IF(OR(K29=\"\",K30=\"\"),\"\",(K30-K29)/K28)),\"\",IF(OR(K29=\"\",K30=\"\"),\"\",(K30-K29)/K28))","v":""},{"$f":"IF(ISERROR(IF(OR(L29=\"\",L30=\"\"),\"\",(L30-L29)/L28)),\"\",IF(OR(L29=\"\",L30=\"\"),\"\",(L30-L29)/L28))","v":""},{"$f":"IF(ISERROR(IF(OR(M29=\"\",M30=\"\"),\"\",(M30-M29)/M28)),\"\",IF(OR(M29=\"\",M30=\"\"),\"\",(M30-M29)/M28))","v":""},"","","","","",{"$f":"IF(ISERROR(IF(OR(S29=\"\",S30=\"\"),\"\",(S30-S29)/S28)),\"\",IF(OR(S29=\"\",S30=\"\"),\"\",(S30-S29)/S28))","v":""},"-"]
[null,null,{"$f":"Languages!A62","v":"Mean Chick Weight (g)"},null,null,null,{"$f":"IF(ISERROR(IF(OR(G32=\"\",G33=\"\"),\"\",G32/G33)),\"\",IF(OR(G32=\"\",G33=\"\"),\"\",G32/G33))","v":""},{"$f":"IF(ISERROR(IF(OR(H32=\"\",H33=\"\"),\"\",H32/H33)),\"\",IF(OR(H32=\"\",H33=\"\"),\"\",H32/H33))","v":""},null,null,{"$f":"IF(ISERROR(IF(OR(K32=\"\",K33=\"\"),\"\",K32/K33)),\"\",IF(OR(K32=\"\",K33=\"\"),\"\",K32/K33))","v":""},{"$f":"IF(ISERROR(IF(OR(L32=\"\",L33=\"\"),\"\",L32/L33)),\"\",IF(OR(L32=\"\",L33=\"\"),\"\",L32/L33))","v":""},{"$f":"IF(ISERROR(IF(OR(M32=\"\",M33=\"\"),\"\",M32/M33)),\"\",IF(OR(M32=\"\",M33=\"\"),\"\",M32/M33))","v":""},"","","","","",{"$f":"IF(ISERROR(IF(OR(S32=\"\",S33=\"\"),\"\",S32/S33)),\"\",IF(OR(S32=\"\",S33=\"\"),\"\",S32/S33))","v":""},"-"]
[null,null,{"$f":"Languages!A63","v":"Chick Yield (%)"},null,null,null,{"$f":"IF(ISERROR(IF(OR(G33=\"\",G28=\"\"),\"\",(G38/G37))),\"\",IF(OR(G33=\"\",G28=\"\"),\"\",(G38/G37)))","v":""},{"$f":"IF(ISERROR(IF(OR(H33=\"\",H28=\"\"),\"\",(H38/H37))),\"\",IF(OR(H33=\"\",H28=\"\"),\"\",(H38/H37)))","v":""},null,null,{"$f":"IF(ISERROR(IF(OR(K33=\"\",K28=\"\"),\"\",(K38/K37))),\"\",IF(OR(K33=\"\",K28=\"\"),\"\",(K38/K37)))","v":""},"","","","","","","",{"$f":"IF(ISERROR(IF(OR(S33=\"\",S28=\"\"),\"\",(S38/S37))),\"\",IF(OR(S33=\"\",S28=\"\"),\"\",(S38/S37)))","v":""},"-"]
[null,null,{"$f":"Languages!A37","v":"Notes"}]

{"sheet":"WeightData","index":18,"n_rows":4,"n_cols":24,"rows_kept":4,"cut":false,"hidden":false,"merged":[]}
[]
[{"$f":"Languages!A66","v":"Egg & Chick Weight Monitoring"}]
[{"$f":"IF(Languages!$A$2<>\"English\",INDEX(INDIRECT(\"Languages!Table7[#Data]\"),MATCH(A4,INDIRECT(\"Languages!Table7[English]\"),0),MATCH(Languages!$A$2,INDIRECT(\"Languages!Table7[#Headers]\"),0)),\"\")","v":""},{"$f":"IF(Languages!$A$2<>\"English\",INDEX(INDIRECT(\"Languages!Table7[#Data]\"),MATCH(B4,INDIRECT(\"Languages!Table7[English]\"),0),MATCH(Languages!$A$2,INDIRECT(\"Languages!Table7[#Headers]\"),0)),\"\")","v":""},{"$f":"IF(Languages!$A$2<>\"English\",INDEX(INDIRECT(\"Languages!Table7[#Data]\"),MATCH(C4,INDIRECT(\"Languages!Table7[English]\"),0),MATCH(Languages!$A$2,INDIRECT(\"Languages!Table7[#Headers]\"),0)),\"\")","v":""},{"$f":"IF(Languages!$A$2<>\"English\",INDEX(INDIRECT(\"Languages!Table7[#Data]\"),MATCH(D4,INDIRECT(\"Languages!Table7[English]\"),0),MATCH(Languages!$A$2,INDIRECT(\"Languages!Table7[#Headers]\"),0)),\"\")","v":""},{"$f":"IF(Languages!$A$2<>\"English\",INDEX(INDIRECT(\"Languages!Table7[#Data]\"),MATCH(E4,INDIRECT(\"Languages!Table7[English]\"),0),MATCH(Languages!$A$2,INDIRECT(\"Languages!Table7[#Headers]\"),0)),\"\")","v":""},{"$f":"IF(Languages!$A$2<>\"English\",INDEX(INDIRECT(\"Languages!Table7[#Data]\"),MATCH(F4,INDIRECT(\"Languages!Table7[English]\"),0),MATCH(Languages!$A$2,INDIRECT(\"Languages!Table7[#Headers]\"),0)),\"\")","v":""},{"$f":"IF(Languages!$A$2<>\"English\",INDEX(INDIRECT(\"Languages!Table7[#Data]\"),MATCH(G4,INDIRECT(\"Languages!Table7[English]\"),0),MATCH(Languages!$A$2,INDIRECT(\"Languages!Table7[#Headers]\"),0)),\"\")","v":""},{"$f":"IF(Languages!$A$2<>\"English\",INDEX(INDIRECT(\"Languages!Table7[#Data]\"),MATCH(H4,INDIRECT(\"Languages!Table7[English]\"),0),MATCH(Languages!$A$2,INDIRECT(\"Languages!Table7[#Headers]\"),0)),\"\")","v":""},{"$f":"IF(Languages!$A$2<>\"English\",INDEX(INDIRECT(\"Languages!Table7[#Data]\"),MATCH(I4,INDIRECT(\"Languages!Table7[English]\"),0),MATCH(Languages!$A$2,INDIRECT(\"Languages!Table7[#Headers]\"),0)),\"\")","v":""},{"$f":"IF(Languages!$A$2<>\"English\",INDEX(INDIRECT(\"Languages!Table7[#Data]\"),MATCH(J4,INDIRECT(\"Languages!Table7[English]\"),0),MATCH(Languages!$A$2,INDIRECT(\"Languages!Table7[#Headers]\"),0)),\"\")","v":""},{"$f":"IF(Languages!$A$2<>\"English\",INDEX(INDIRECT(\"Languages!Table7[#Data]\"),MATCH(K4,INDIRECT(\"Languages!Table7[English]\"),0),MATCH(Languages!$A$2,INDIRECT(\"Languages!Table7[#Headers]\"),0)),\"\")","v":""},{"$f":"IF(Languages!$A$2<>\"English\",INDEX(INDIRECT(\"Languages!Table7[#Data]\"),MATCH(L4,INDIRECT(\"Languages!Table7[English]\"),0),MATCH(Languages!$A$2,INDIRECT(\"Languages!Table7[#Headers]\"),0)),\"\")","v":""},{"$f":"IF(Languages!$A$2<>\"English\",INDEX(INDIRECT(\"Languages!Table7[#Data]\"),MATCH(M4,INDIRECT(\"Languages!Table7[English]\"),0),MATCH(Languages!$A$2,INDIRECT(\"Languages!Table7[#Headers]\"),0)),\"\")","v":""},{"$f":"IF(Languages!$A$2<>\"English\",INDEX(INDIRECT(\"Languages!Table7[#Data]\"),MATCH(N4,INDIRECT(\"Languages!Table7[English]\"),0),MATCH(Languages!$A$2,INDIRECT(\"Languages!Table7[#Headers]\"),0)),\"\")","v":""},{"$f":"IF(Languages!$A$2<>\"English\",INDEX(INDIRECT(\"Languages!Table7[#Data]\"),MATCH(O4,INDIRECT(\"Languages!Table7[English]\"),0),MATCH(Languages!$A$2,INDIRECT(\"Languages!Table7[#Headers]\"),0)),\"\")","v":""},{"$f":"IF(Languages!$A$2<>\"English\",INDEX(INDIRECT(\"Languages!Table7[#Data]\"),MATCH(P4,INDIRECT(\"Languages!Table7[English]\"),0),MATCH(Languages!$A$2,INDIRECT(\"Languages!Table7[#Headers]\"),0)),\"\")","v":""},{"$f":"IF(Languages!$A$2<>\"English\",INDEX(INDIRECT(\"Languages!Table7[#Data]\"),MATCH(Q4,INDIRECT(\"Languages!Table7[English]\"),0),MATCH(Languages!$A$2,INDIRECT(\"Languages!Table7[#Headers]\"),0)),\"\")","v":""},{"$f":"IF(Languages!$A$2<>\"English\",INDEX(INDIRECT(\"Languages!Table7[#Data]\"),MATCH(R4,INDIRECT(\"Languages!Table7[English]\"),0),MATCH(Languages!$A$2,INDIRECT(\"Languages!Table7[#Headers]\"),0)),\"\")","v":""},{"$f":"IF(Languages!$A$2<>\"English\",INDEX(INDIRECT(\"Languages!Table7[#Data]\"),MATCH(S4,INDIRECT(\"Languages!Table7[English]\"),0),MATCH(Languages!$A$2,INDIRECT(\"Languages!Table7[#Headers]\"),0)),\"\")","v":""},{"$f":"IF(Languages!$A$2<>\"English\",INDEX(INDIRECT(\"Languages!Table7[#Data]\"),MATCH(T4,INDIRECT(\"Languages!Table7[English]\"),0),MATCH(Languages!$A$2,INDIRECT(\"Languages!Table7[#Headers]\"),0)),\"\")","v":""},{"$f":"IF(Languages!$A$2<>\"English\",INDEX(INDIRECT(\"Languages!Table7[#Data]\"),MATCH(U4,INDIRECT(\"Languages!Table7[English]\"),0),MATCH(Languages!$A$2,INDIRECT(\"Languages!Table7[#Headers]\"),0)),\"\")","v":""},{"$f":"IF(Languages!$A$2<>\"English\",INDEX(INDIRECT(\"Languages!Table7[#Data]\"),MATCH(V4,INDIRECT(\"Languages!Table7[English]\"),0),MATCH(Languages!$A$2,INDIRECT(\"Languages!Table7[#Headers]\"),0)),\"\")","v":""},{"$f":"IF(Languages!$A$2<>\"English\",INDEX(INDIRECT(\"Languages!Table7[#Data]\"),MATCH(W4,INDIRECT(\"Languages!Table7[English]\"),0),MATCH(Languages!$A$2,INDIRECT(\"Languages!Table7[#Headers]\"),0)),\"\")","v":""},{"$f":"IF(Languages!$A$2<>\"English\",INDEX(INDIRECT(\"Languages!Table7[#Data]\"),MATCH(X4,INDIRECT(\"Languages!Table7[English]\"),0),MATCH(Languages!$A$2,INDIRECT(\"Languages!Table7[#Headers]\"),0)),\"\")","v":""}]
["Company","Farm","Flock ID","Breed","Hen Age (weeks)","Egg Age (days)","Setter No","Hatcher No","Date Set","Date Transferred","Date Hatched","No of Eggs Set","Weight of Empty Tray","Weight of Full Tray","Transfer Weight","Total Chick Weight","No of Chicks Hatched","Culls and Deads","Unhatched Eggs","Egg Weight Loss (%)","Mean Egg Weight (g)","Mean Chick Weight (g)","Chick Yield (%)","Notes"]

{"sheet":"WeightChart","index":19,"n_rows":2,"n_cols":2,"rows_kept":2,"cut":false,"hidden":false,"merged":[]}
[]
[null,{"$f":"Languages!A66","v":"Egg & Chick Weight Monitoring"}]

{"sheet":"Languages","index":20,"n_rows":143,"n_cols":8,"rows_kept":143,"cut":false,"hidden":false,"merged":[]}
["Selected","Option Table"]
["English","English","Español","中文","Italian","Turkish","Português","Arabic"]
[{"$f":"INDIRECT(\"Table7[@\" & $A$2 &\"]\")","v":"Hatchery Monitoring"},"Hatchery Monitoring","Monitoreo de Planta de Incubacion","孵化数据监测","Monitoraggio dell'incubatoio","Kuluçka Takibi","Monitoramento de Incubatório","مراقبه الفقاسه"]
[{"$f":"INDIRECT(\"Table7[@\" & $A$2 &\"]\")","v":"Company Name"},"Company Name","Nombre de la Empresa","公司名称","Nome Azienda","Şirket Adı","Nome da empresa","أسم الشركه"]
["Data Input","Data Input","Entrada de datos","数据录入","Inserimento dati","Veri Girişi","Adicionar dados","أدخال البيانات"]
["DB Review","DB Review","Revision de la base de datos","数据库审核","Revisione Database","Veri Tabanı İnceleme","Revisão do banco de dados","مراجعه البيانات"]
["Chart Review","Chart Review","Revision de graficos","图表审核","Revisione grafico","Grafik İnceleme","Revisão gráfica","مراجعه الرسوم البيانيه"]
["Candling","Candling","Miraje","照蛋","Speratura","Lamba Muayenesi","Ovoscopia","ألفحص الضوئي"]
["Hatch Debris","Hatch Debris","Restos de Incubacion","毛蛋","Scarti di Schiusa","Kuluçka Artıkları","Quebra de resíduos","فحص البيض بعد الفقس "]
["Egg & Chick Weight","Egg & Chick Weight","Peso de huevo y Peso del pollito","种蛋和雏鸡重量","Peso uovo & Pulcino","Yumurta&Civciv Ağırlığı","Peso de ovos e pintos","وزن البيض وزن الصوص"]
["General Information","General Information","Informacion general","基本信息","Informazioni Generali","Genel Bilgi","Informações gerais","معلومات عامه"]
["Data Summary","Data Summary","Resumen de datos","数据小结","Riassunto dati","Veri Özeti","Dados resumidos","ملخص البيانات"]
["Company","Company","Empresa","公司","Azienda","Şirket","Empresa","الشركه"]
["Farm","Farm","Granja","鸡场","Allevamento","Çiftlik","Granja","المزرعه"]
["Flock ID","Flock ID","Código del lote","鸡场编号","Codice Gruppo","Sürü No","Identificação do lote"," رقم القطيع"]
["Breed","Breed","Estirpe","品种","Razza","Irk","Linhagem","السلاله"]
["Hen Age (weeks)","Hen Age (weeks)","Edad de la gallina (semanas)","种鸡周龄（周）","Età del gruppo (settimane)","Anaç Yaşı (hafta)","Idade da reprodutora (sem)","عمر الام (بألاسبوع)"]
["Egg Age (days)","Egg Age (days)","Edad del huevo (días)","存蛋时间（天）","Età uova (giorni)","Yumurta Yaşı (gün)","Estoque de ovos (dias)","عمر البيض (باليوم)"]
["Setter No","Setter No","Incubadora Nº","孵化器编号","Incubatrice n°","Gelişim Mak. No","Incubadora Nº","رقم الحضانه"]
["Hatcher No","Hatcher No","Nacedora Nº","出雏器编号","Schiusa n°","Çıkım Mak. No","Nascedouro Nº","رقم الفقاسه"]
["Date Set","Date Set","Fecha carga","入孵日期","Data d'incubazione","Basım Tarihi","Data da incubação","تاريخ الايداع"]
["Date Candled","Date Candled","Fecha miraje","照蛋日期","Data di Speratura","Lamba Muayene Tarihi","Data da ovoscopia","تاريخ الفحص الضوئي"]
["Date Transferred","Date Transferred","Fecha transferencia","落盘日期","Data di Trasferimento","Transfer Tarihi","Data da transferência","تاريخ النقل"]
["Date Hatched","Date Hatched","Fecha de nacimiento","出雏日期","Data di schiusa","Çıkım Tarihi","Data do nascimento","تاريخ الفقس"]
["No of Eggs Set","No of Eggs Set","Nº de huevos cargados","种蛋入孵数量","N° Uova Incubate","Basılan Yumurta Adedi","Nº ovos incubados","عدد البيض المودع"]
["No Eggs Removed","No Eggs Removed","Nº de huevos descartados","淘汰种蛋数量","N° Uova rimosse","Atılan Yumurta Adedi","Nº ovos removidos","عدد البيض المستبعد"]
["Infertile","Infertile","Infértiles","未受精蛋","Infertile","Dölsüz","Inférteis","غير مخصب"]
["24h Early Dead","24h Early Dead","Muerte temprana 24 h","24小时早期死亡","Mortalità precoce (24 ore)","24 Saat Erken Ölüm","Mortalidade até 24h","نفوق مبكر(24ساعه)"]
["48h Early Dead","48h Early Dead","Muerte temprana 48 h","48小时早期死亡","Mortalità precoce (48 ore)","48 Saat Erken Ölüm","Mortalidade até 48h","نفوق مبكر (48ساعه)"]
["Blood Ring","Blood Ring","Anillo de sangre","血环","Anello di Sangue","Kan Halkası","Anel de Sangue","حلقه دمويه"]
["Black Eye","Black Eye","Ojo ","黑眼","Occhio Nero","Siyah Göz","Olho Preto","العين السوداء"]
["Contaminated","Contaminated","Contaminados","污染","Contaminati","Kontamine","Contaminado","تلوث"]
["Poor Shell Quality","Poor Shell Quality","Mala calidad de cáscara","蛋壳质量差","Scarsa qualità del guscio","Düşük Kabuk Kalitesi","Baixa qualidade de casca","رداءه قشره البيض"]
["Cracked Shell","Cracked Shell","Cáscara quebrada","蛋壳破损","Guscio rotto/incrinato","Kırık","Ovos trincados","شروخ بالقشره"]
["% Eggs Set","% Eggs Set","% Huevos cargados","%入孵蛋","% uova incubate","% Basılan Yumurta","% ovos incubados","%للبيض المودع"]
["Top Quartile %","Top Quartile %","Top 25%","排名前25%","Miglior 25%","En iyi %25","Melhores 25%","نتائج أفضل 25%"]
["Notes","Notes","Notas","备注","Note","Notlar","Observações","ملاحظات"]
["Percentage","Percentage","Porcentaje","百分比","Percentuale","Yüzde Oran","Percentual","النسبه المئويه"]
["Early Dead (0-7d)","Early Dead (0-7d)","Mortalidad temprana (0-7d)","早期死亡（0-7天）","Mortalità precoce (0-7gg)","Erken Dönem Ölüm (0-7 gün)","Mortalidade inicial (0-7d)","النفوق أجنه مبكر(0-7 يوم)"]
["Mid Dead (8-14d)","Mid Dead (8-14d)","Mortalidad intermedia (8-14d)","中期死亡（8-14天）","Mortalità media (8-14gg)","Orta Dönem Ölüm (8-14 gün)","Mortalidade média (8-14d)","النفوق أجنه وسطي (8-14 يوم)"]
["Late Dead (15-21d)","Late Dead (15-21d)","Mortalidad tardia (15-21d)","晚期死亡（15-21天）","Mortalità tardiva (15-21gg)","Geç Dönem Ölüm (15-21 gün)","Mortalidade tardia (15-21d)","النفوق أجنه متأخر (15-21 يوم)"]
["External Pip","External Pip","Picados no nacidos","内啄壳","Beccati esternamente","İç Delme","Bicados","نقر خارجي"]
["Dead and Cull Chicks","Dead and Cull Chicks","Pollitos muertos y descartes","死亡和淘汰雏鸡","Pulcini morti e  scarti","Ölü ve ıskarta civcivler","Pintos refugos e mortos","وفيات وصيصان مستبعده"]
["Head in Small End of Egg","Head in Small End of Egg","Cabeza hacia abajo (dado vuelta)","头部朝下","Testa nella parte stretta dell'uovo","Kafa Sivri Uçda","Cabeça virada para o pólo inferior","الرأس في أتجاه الناحيه المدببه للبيضه"]
["Head to Left","Head to Left","Cabeza hacia izquierda","头朝左","Testa a sinistra","Kafa Sola Yönelmiş","Cabeça para o lado esquerdo","أتجاه الرأس نحو اليسار"]
["Feet over Head","Feet over Head","Patas sobre la cabeza","脚在头上","Piedi sopra la testa","Ayak Kafa Üstünde","Patas sobre a cabeça","القدم فوق الرأس"]
["Beak above Right Wing","Beak above Right Wing","Pico sobre el ala derecha","喙在右翅上","Becco sopra ala destra","Gaga Sağ Kanat Üstünde","Cabeça sobre a asa direita","المنقار أعلي الجناح الايمن"]
["Exposed Brain / Eye Defect","Exposed Brain / Eye Defect","Exposicion Encefalo / Defecto del ojo","大脑外露/眼缺失","Cervello esposto/difetti agli occhi","Beyin Açıkta/Çapraz Gaga","Cérebro exposto / defeito olho","عيوب بالعين /أنفجار بالمخ"]
["Extra Limbs","Extra Limbs","Extremidades extras","多肢","Extra arti","Ekstra Bacak","Membros extras","أطراف ذائده"]
["Ectopic Viscera","Ectopic Viscera","Víscera ectópica","内脏外露","Viscere esterne","İç Organlar Açıkta","Viscera ectópica","أحشاء بالخارج"]
["Excess Albumen","Excess Albumen","Exceso de albúmina","多余蛋白","Eccessivo albume","Aşırı Albumin","Excesso de albume","ذياده زلال البيض"]
["Dry Egg Content","Dry Egg Content","Contenido seco en el interior del huevo","干的蛋内容物","Contenuto secco delle uova","Kuru Yumurta İçeriği","Matéria seca do ovo","جفاف محتوي البيضه"]
["Weight of Empty Tray","Weight of Empty Tray","Peso de la bandeja vacía","蛋盘重量","Peso del telaio vuoto","Boş Tepsi Ağırlığı","Peso da bandeja vazia","وزن الصينيه الفارغ بالجرام"]
["Weight of Full Tray","Weight of Full Tray","Peso de la bandeja llena","整盘蛋重量","Peso del telio pieno","Dolu Tepsi Ağırlığı","Peso da bandeja cheia","وزن الصينيه بالبيض بالجرام"]
["Transfer Weight","Transfer Weight","Peso en transferencia","落盘时重量","Peso al trasferimento","Transfer Ağırlığı","Peso na transferência","الوزن عند النقلبالجرام"]
["Total Chick Weight","Total Chick Weight","Peso total del pollito","雏鸡总重量","Peso totale dei pulcini","Toplam Civciv Ağırlığı","Peso total de pintos","أجمالي وزن الصيصان بالجرام"]
["No of Chicks Hatched","No of Chicks Hatched","Nº de pollitos nacidos","雏鸡数量","N° Pulcini schiusi","Çıkan Civciv Sayısı","Nº de pintos nascidos","عدد الصيصان الفاقسه"]
["Culls and Deads","Culls and Deads","Descartes y Muertos","淘汰和死亡","Morti e scarti","Iskarta ve Ölüler","Refugos e mortos","عدد المستبعد والوفيات"]
["Unhatched Eggs","Unhatched Eggs","Huevos no nacidos","未孵化种蛋","Uova non schiuse","Çıkmamış Yumurtalar","Ovos não eclodidos","البيض الغير فاقس"]
["Egg Weight Loss (%)","Egg Weight Loss (%)","Pérdida de peso del huevo (%)","种蛋失水（%）","Perdita peso dell'uovo (%)","Yumurta Ağırlık Kaybı (%)","Perda de peso (%)","النسبه المئويه للفقد في وزن البيض"]
["Mean Egg Weight (g)","Mean Egg Weight (g)","Peso medio del huevo (g)","平均蛋重（克）","Peso medio uovo (gr)","Ortalama Yumurta Ağırlığı (g)","Peso médio dos ovos (g)","متوسط وزن البيض بالجرام"]
["Mean Chick Weight (g)","Mean Chick Weight (g)","Peso medio del pollito (g)","平均雏鸡重量（克）","Peso medio pulcino (gr)","Ortalama Civciv Ağırlığı (g)","Peso médio dos pintos (g)","متوسط وزن الصيصان بالجرام"]
["Chick Yield (%)","Chick Yield (%)","Rendimiento del pollito (%)","雏蛋比（%）","Resa del pulcino (%)","Civciv Oranı (%)","Rendimento de pintos (%)","وزن الكتكوت عند الفقس كنسبه مئويه من وزن البضه"]
["Data Point","Data Point","Datos","数据点","Punto dati","Veri Noktası","Dados"," البيانات"]
["Good Region","Good Region","Buena región","良好区域","Regione Buona","İyi Bölge","Faixa ideal","منطقه جيده"]
["Egg & Chick Weight Monitoring","Egg & Chick Weight Monitoring","Monitoreo de peso de huevos y pollitos","种蛋和雏鸡重量监测","Monitoraggio peso uovo&pulcino","Yumurta&Civciv Ağırlık Takibi","Monitoria de pesagem de ovos e pintos","مراقبه أوزان البيض وأوزان الصيصان"]
["Candling Monitoring","Candling Monitoring","Monitoreo de miraje","照蛋监测","Monitoraggio Speratura","Lamba Muayenesi Takibi","Monitoria de ovoscopia","متابعه الفحص الضوئي"]
["Simple Hatch Debris Monitoring","Simple Hatch Debris Monitoring","Monitoreo de desechos del nacimiento","简易毛蛋监测","Semplice monitoraggio degli scarti di schiusa","Basit Kuluçka Artığı Takibi","Monitoria de quebra de resíduos","فحص عينه البيض بعد الفقس"]
["Language Selection","Language Selection","Selección de idioma","语言选择","Selezione lingua","Dil Seçimi","Seleção de idioma","أختيار اللغه"]
["Translations","Translations","Traducciones","译文","Traduzione","Çeviriler","Traduções","الترجمه"]
["From","From","De:","从","Da ","Kimden","De","من"]
[{"$f":"INDIRECT(\"Table7[@\" & $A$2 &\"]\")","v":"To"},"To","Para:","到","a","Kime","Para","الي"]
["Contact: Hatchery Specialists","Contact: Hatchery Specialists","Contacto: Especialista de Incubacion","联系：孵化专家","Contatto: Specialista di Incubazione","İrtibat","Contato: Especialistas em Incubatório","التواصل مع أخصائي الفراخات"]
["Click here for HOW TO hatchery documents","Click here for HOW TO hatchery documents","Presione aqui para ver documentos de incubacion HOW TO","点击这里到 HOW TO 孵化资料","Clicca per i documenti HOW TO","NASIL YAPILIR Belgeleri İçin Buraya Tıklayınız","Clique aqui para acessar os documentos \"Como fazer\"","أضغط هنا للوصول الي الوثائق المتعلقه بكيفيه العمل بالفراخات"]
["Tray","Tray","Bandeja","蛋盘","Cassetto","Tepsi","Bandeja","أطباق البيض"]
["Language Correction","Language Correction","Corrección de idioma","语言修正","Correzione Lingua","Lisan Düzeltme","Correção de idioma","تصحيح الاخطاء اللغويه"]
["Reference","Reference","Referencia","参考","Reference","Kaynak","Referência","المراجع"]
["Select","Select","Seleccionar","选择","Selezionare","Seçim","Selecionar","أختيار "]
["Cancel","Cancel","Cancelar","取消","Cancellare","İptal","Cancelar","ألغاء"]
["Go","Go","Ir","下一步","Vai","Git","Ir","أذهب "]
["Calendar - pick a date","Calendar - pick a date","Calendario - Escoja una fecha","日历--日期选择","Calendario- scegli una data","Takvim-Bir Tarih Seçiniz","Calendário - escolha uma data","التقويم - أختيار موعد"]
["Close","Close","Cerrar","关闭","Chiudi","Kapat","Fechar","أغلق"]
["OK","OK","OK","好","ok","Tamam","OK","حسنا"]
["Select All","Select All","Seleccionar todo","全部选择","Seleziona tutto","Tümünü Seç","Selecionar tudo","تحديد الكل"]
["Deselect All","Deselect All","Borrar seleccion de todo","全部删除","Disseleziona tutto","Seçim İptal","Desmarcar tudo","ألغاء تحديد الكل"]
["Add a Recipient","Add a Recipient","Agregar un destinatario","增加接收者","Aggiungi un destinatario","Alıcı Ekle","Adicionar destinatário","أضافه مستلم"]
["Send","Send","Enviar","发送","Invia","Gönder","Enviar","أرسل"]
["Sitemap","Sitemap","Mapa del sitio","站点地图","Mappa del sito","Site Haritası","Site","خريطه الموقع"]
["Select a Recipient","Select a Recipient","Seleccione un destinatario","选择接收者","Seleziona un destinatario","Alıcı Seç","Selecionar um destinatário","تحديد مستلم"]
["Name","Name","Nombre","名称","Nome","İsim","Nome","الاسم"]
["Email Address","Email Address","Direccion de email","邮件地址","Indirizzo mail","Eposta Adresi","Endereço de e-mail","عنوان الايميل"]
["Add","Add","Agregar ","增加","Aggiungi","Ekle","Adicionar","أضافه "]
["Add a New Recipient","Add a New Recipient","Agregar un nuevo destinatario","增加一个新的接收者","Aggiungi un nuovo destinatario","Yeni Alıcı Ekle","Adicionar um novo destinatário","أضافه أسم مستلم"]
["Select a Breed","Select a Breed","Seleccione una estirpe","选择品种","Seleziona una Razza","Bir Irk Seçiniz","Selecionar linhagem","أختيار السلاله"]
["Edit","Edit","Editar","编辑","Modifica","Düzenle","Editar","تعديل"]
["Add New","Add New","Añadir nuevo","增加新的","Aggiungi Nuovo","Yeni Ekle","Adicionar novo","أضافه جديد"]
["New Breed Name:","New Breed Name:","Nuevo nombre de la estirpe:","新的品种名称","Nome Nuova Razza:","Yeni Irk İsmi:","Nova linhagem:","اسم السلاله الجديد"]
["Save","Save","Guardar","保存","Salva","Kaydet","Salvar","حفظ"]
["Enter a New Breed Name","Enter a New Breed Name","Ingrese un nuevo nombre de estirpe","增加新的品种名称","Entra Nome di una nuova razza","Yeni Bir Irk İsmi Giriniz","Adicionar uma nova linhagem","أدخل أسم السلاله الجديد"]
["Breed List","Breed List","Listado de estirpes","品种列表","Lista razze","Irk Listesi","Lista de linhagem","قائمه السلالات"]
["Delete","Delete","Borrar","删除","Cancella","Sil","Excluir","حذف"]
["Change Name","Change Name","Cambiar nombre","更改名称","Cambia nome","İsmi Değiştir","Alterar nome","تغيير الاسم"]
["Edit the Breed List","Edit the Breed List","Editar la lista de estirpes","编辑品种列表","Modifica la lista Razza","Irk Listesini Düzenle","Editar a lista de linhagem","تعديل قائمه السلالات"]
["Edit the Breed Name","Edit the Breed Name","Editar el nombre de la estirpe","编辑品种名称","Modifica il Nome della Razza","Irk İsmini Düzenle","Editar o nome da linhagem","تعديل أسم السلاله"]
["Choose a language to delete","Choose a language to delete","Elige un idioma para eliminar","选择一个语言进行删除","Scegli una lingua da cancellare","Silinecek Dili Seçiniz","Escolha uma linguagem para excluir","اختر لغة لحذفها"]
["Saved","Saved","Guardado","已保存","Salvato","Kaydedildi","Salvo","حفظ"]
["Mal-positions","Mal-positions","Malas posiciones","异位","Mal-posizione","Pozisyon Hataları","Má Posição","أوضاع شاذه"]
["Mal-formations","Mal-formations","Malas formaciones","畸形","Malformati","Formasyon Hataları","Malformações","التشوهات"]
["Hatch Break-down","Hatch Break-down","Quebrados","孵化数据分解","Problemi di schiusa","Çıkım Olmayan Yumurtalar","Análise do nascimento","تحليل الفقسه"]
["A company name is missing.","A company name is missing.","Falta el nombre de la empresa.","一个公司名称丢失","Manca il nome dell'azienda","Şirket İsmi Bulunamadı","O nome da empresa está faltando.","اسم الشركة غير موجود."]
["You did not save the data in the board. Do you want to save it now? You still can save it later.","You did not save the data in the board. Do you want to save it now? You still can save it later.","No guardaste los datos en la tabla. ¿Quieres guardarlo ahora? Todavía puedes guardarlo más tarde.","你没有保存数据。你想现在保存吗？你也可以稍后保存","Non hai salvato i dati, Vuoi salvarli ora? Puoi salvarli più tardi.","Çalışmanızı henüz kaydetmediniz. Şimdi kaydetmek ister misiniz? Daha sonra da kaydedebilirsiniz. ","Você não salvou os dados. Você gostaria de salvá-los agora? Você ainda poderá salvá-los mais tarde.","لم تقم بحفظ البيانات في اللوحة. هل تريد حفظه الآن؟ لا يزال بإمكانك حفظه لاحقًا."]
["Warning","Warning","Cuidado!","警告","Attenzione","Uyarı","Aviso","تحذير(أنذار)"]
["Farm name is missing.","Farm name is missing.","Falta el nombre de la granja.","鸡场名称丢失","Manca il nome dell'allevamento","Çiftlik Adı Bulunamadı","A granja está faltando.","اسم المزرعة غير موجود."]
["Flock ID is missing.","Flock ID is missing.","Falta la identificación del lote.","鸡群标号丢失","Manca identificazione del gruppo","Sürü Kodu Bulunamadı","O lote está faltando.","رقم القطيع غير موجود."]
["Breed Name is missing.","Breed Name is missing.","Falta el nombre de la estirpe.","品种名称丢失","Manca il nome della razza","Irk Adı Bulunamadı","A linhagem está faltando.","اسم السلالة غير موجود."]
["Hen age is missing.","Hen age is missing.","Falta la edad de la gallina (semanas)","种鸡周龄丢失","Manca età del gruppo","Anaç Yaşı Bulunamadı","A idade está faltando.","عمر الدجاجة غير موجود."]
["Egg age is missing.","Egg age is missing.","Falta la edad del huevo (dias)","存蛋时间丢失","Manca età delle uova","Yumurta Yaşı Bulunamadı","O estoque está faltando.","عمر البيض غير موجود."]
["Do you want to write all data to the database?","Do you want to write all data to the database?","¿Quieres escribir todos los datos en la base de datos?","你是想把所有的数据录入数据库吗？","Vuoi scrivere i dati nel database?","Tüm veriyi veri tabanına yazmak istiyor musunuz?","Você gostaria de gravar todos os dados no banco de dados?","هل تريد كتابة كافة البيانات في قاعدة البيانات؟"]
["Confirmation: Save Data","Confirmation: Save Data","Confirmación: Guardar datos","确认：保存数据","Conferma: Salva i dati","Onaylama:Veriyi Kaydet","Confirmação: Salvar os dados","التأكيد: حفظ البيانات"]
["Successfully saved the data.","Successfully saved the data.","Se guardaron los datos con éxito ","数据保存成功","Dati salvati con successo","Kaydetme Başarılı","Dados salvos com sucesso","تم حفظ البيانات بنجاح."]
["You don't have data to be transfered.","You don't have data to be transfered.","No tienes datos para transferir.","你没有需要传输的数据","Non hai dati da trasferire","Transfer edilecek veriniz yok. ","Não há dados a serem transferidos.","ليس لديك بيانات ليتم نقلها."]
["There already exists data with the same company, farm, breed, hen age, egg age, and setter number in the Candling DB. Saving data failed.","There already exists data with the same company, farm, breed, hen age, egg age, and setter number in the Candling DB. Saving data failed.","Ya existen datos con la misma empresa, granja, estirpe, edad de la gallina, edad del huevo y número de incubadora en la base de datos de miraje. Error al guardar los datos.","这些数据已经在照蛋数据库中存在，相同的公司名称、鸡场、品种、种鸡周龄、存蛋时间、孵化器编号。数据保存失败","Ci sono già dati di questa azienda,allevamento,Razza, età gruppo, età uova e n° incubatrice , nel database di Speratura. Salvataggio dati fallito.","Lamba muayenesi veri tabanında aynı şirket, çiftlik, ırk, anaç yaşı,yumurta yaşı ve setter numarasıyla isimle kaydedilmiş veri var. Kayıt saklanamadı. ","Já há dados com a mesma empresa, granja, linhagem, idade, estoque de ovos, e número da incubadora no banco de dados de ovoscopia. Não foi possível salvar os dados.","توجد بالفعل بيانات مع نفس الشركة والمزرعة والسلالة وعمر الدجاجة وعمر البيض ورقم الحضانه في قاعده بيانات الفحص الضوئي للبيض. فشل حفظ البيانات ."]
["Do you want to clear all data?","Do you want to clear all data?","¿Quieres borrar todos los datos?","你是要清除所有数据吗?","Vuoi elimare tutti i dati?","Tüm veriyi silmek istiyor musunuz?","Você gostaria de limpar todos os dados?","هل تريد مسح كافة البيانات؟"]
["Confirmation: Clear Data","Confirmation: Clear Data","Confirmación: Borrar datos","确认：清除数据","Conferma: Elinima dati","Onaylama: Veriyi Sil","Confirmação: Limpar dados","التأكيد: امسح البيانات"]
["Please choose what to do first: data input, data review, or chart review.","Please choose what to do first: data input, data review, or chart review.","Por favor, elija qué hacer primero: entrada de datos, revisión de datos o revisión de gráficos.","请选择操作的第一步：数据录入、数据审核或者图表审核","Si prega di scegliere cosa fare prima: inserimento dati, rivisione dati,revisione grafico","İlk yapılacağı seçiniz:veri girişi,  veri inceleme veya grafik inceleme","Por favor, escolha o que gostaria de fazer primeiro: adicionar dados, verificar dados, ou rever o gráfico.","الرجاء اختيار ما يجب فعله أولاً: إدخال البيانات أو مراجعة البيانات أو مراجعة المخطط."]
["You did not save the data in the board. Do you still want to go back to the main page? If you click Yes, you will lose the data in the board. If you want to save the data, click No and save first.","You did not save the data in the board. Do you still want to go back to the main page? If you click Yes, you will lose the data in the board. If you want to save the data, click No and save first.","No guardaste los datos en la tabla. ¿Todavía quieres volver a la página principal? Si hace clic en Sí, perderá los datos en la tabla. Si desea guardar los datos, haga clic en No y guarde primero.","你没有保存数据。你是否仍要回到主页？如果选择是，你将丢失数据。如果你想保存数据，点击“不”然后保存","Non hai ancora salvato i dati. Vuoi ancora andare indietro alla pagina principale? Se clicchi SI, perderai i dati.Se vuoi salvare i dati, clicca No e salva prima.","Veriyi henüz saklamadınız. Ana sayfaya dönmek istediğinizden emin misiniz? Evet’e basarsanız veriyi kaybedeceksiniz. Veriyi saklamak isterseniz Hayır’a basın ve önce kaydedin. ","Você não salvou os dados. Você ainda quer voltar para a página principal? Se você clicar em SIM, perderá os dados. Se você quiser salvar os dados, clique em NÃO e salve primeiro.","لم تقم بحفظ البيانات في اللوحة. هل مازلت تريد العودة إلى الصفحة الرئيسية؟ إذا قمت بالنقر فوق \"نعم\" ، فسوف تفقد البيانات الموجودة في اللوحة. إذا كنت تريد حفظ البيانات ، فانقر فوق \"لا\" ثم احفظها أولاً."]
["A language name is missing.","A language name is missing.","Falta el nombre del idioma.","语言名称丢失","Manca il nome di una lingua","Dil ismi bulunamadı","O idioma está faltando.","اسم اللغة مفقود."]
["Translation is not complete. Fill out all blanks.","Translation is not complete. Fill out all blanks.","La traducción no está completa. Rellene todos los espacios en blanco.","转化没有完成。填写完成空白处","Traduzione non è completa, Riempi le caselle vuote.","Çeviri tamamlanmadı. Boşlukları doldurunuz. ","A tradução não está completa. Preencha todos os espaços em branco.","الترجمة ليست كاملة. املأ كل الفراغات."]
["There already exists the same language in the language DB.","There already exists the same language in the language DB.","Ya existe el mismo idioma en el lenguaje de la base de datos","相同的语言已经存在语言数据库中","Esiste già la stessa lingua nel database","Lisan veri tabanında aynı isimle başka bir lisan var. ","Já existe o mesmo idioma no banco de dados de idiomas.","توجد بالفعل نفس اللغة في لغة قاعدة البيانات."]
["You must choose one of each selection.","You must choose one of each selection.","Debes elegir uno de cada selección","你必须选择每个选项","Devi scegliere uno di ogni selezione","Her bir seçenekten birisini seçmelisiniz. ","Você deve escolher uma de cada seleção.","يجب عليك اختيار واحد من كل اختيار."]
["The month name must match one on the list.","The month name must match one on the list.","El nombre del mes debe coincidir con uno de la lista","月的选项必须和列表中的相符","Il nome del mese deve corrispondere con uno della lista","Ay ismi listedeki aylarla eşleşmeli. ","O nome do mês deve corresponder a um da lista.","يجب أن يتطابق اسم الشهر مع اسم في القائمة."]
["You did not select a date.","You did not select a date.","No seleccionaste una fecha","你没有选择日期","Non hai selezionato la data","Bir tarih seçmediniz. ","Você não selecionou uma data.","لم تقم بتحديد تاريخ."]
["You must choose at least one recipient.","You must choose at least one recipient.","Debes elegir al menos un destinatario","你至少要选择一个接收者","Devi selezionare almeno un destinatario","En az bir alıcı seçmelisiniz. ","Você deve escolher pelo menos um destinatário.","يجب  اختيار مستلم واحد على الأقل."]
["You must fill out the name field.","You must fill out the name field.","Debes completar el campo de Nombre","你必须要填写名称","Devi completare il campo del nome","İsim girmelisiniz. ","Você deve preencher o nome do campo.","يجب ملء حقل الاسم."]
["You must fill out the email address field.","You must fill out the email address field.","Debes completar el campo de email","你必须要填写邮件地址","Devi completare il campo dell'indirizzo mail.","Eposta adresi girmelisiniz. ","Você deve preencher o campo de endereço de e-mail.","يجب  ملء حقل عنوان البريد الإلكتروني."]
["Do you really want to delete the breed name from the list?","Do you really want to delete the breed name from the list?","¿Realmente quieres eliminar el nombre de estirpe de la lista?","你是否确认要删除种鸡品种","Vuoi cancellare il nome della razza dalla lsita","Irk ismini sil ek İstediğinizden emin misiniz?","Você realmente deseja excluir o nome da linhagem da lista?","هل تريد حقًا حذف اسم السلالة من القائمة؟"]
["Confirmation: Delete","Confirmation: Delete","Confirmación: Eliminar","确认：删除","Conferma: Cancella","Onaylama:Sil","Confirmação: Excluir","تأكيد: حذف"]
["Please select one item in the list on the left.","Please select one item in the list on the left.","Por favor, seleccione un elemento en la lista de la izquierda.","请从左面列表选择一项","Prego di selezionare un oggetto nella lsita di sinsitra","Lütfen soldaki listeden bir seçim yapınız","Por favor, selecione um item na lista à esquerda.","الرجاء تحديد عنصر واحد في القائمة الموجودة على اليسار."]
["Please select only one item at a time.","Please select only one item at a time.","Por favor seleccione sólo un elemento cada vez.","请每次只选择一个选项","Pergo di selezionare un oggetto per volta","Lütfen tek seferde tek seçim yapınız","Por favor, selecione apenas um item de cada vez.","الرجاء تحديد عنصر واحد فقط في كل مرة."]
["You cannot delete the current language. Deletion failed.","You cannot delete the current language. Deletion failed.","No puedes borrar el idioma actual. Eliminación fallida.","你不能删除现有语言。删除失败","Tu non puoi cancellare la lingua corrente.Cancellazione fallita","Geçerli lisanı silemezsiniz. Silme başarısız. ","Você não pode excluir o idioma atual. Falha ao excluir.","لا يمكنك حذف اللغة الحالية. فشل الحذف."]
["Only a date format is permitted in this cell.","Only a date format is permitted in this cell.","Sólo se permite un formato de fecha en esta celda.","单元格内只允许日期格式","Solo un tipo di format della data è permesso in questa cella","Bu hücreye sadece tarih  girilebilir","Apenas um formato de data é permitido nesta célula.","يُسمح فقط بتنسيق التاريخ في هذه الخلية."]
["Only an integer format is permitted in this cell.","Only an integer format is permitted in this cell.","Solo se permite un formato completo en esta celda.","单元格内只允许整数格式","In questa cella è consintito solo il formato intero","Bu hücreye sadece tamsayı girilebilir","Apenas um formato inteiro é permitido nesta célula.","يسمح فقط بتنسيق عدد صحيح في هذه الخلية."]
["You cannot modify English. Please contact the developer.","You cannot modify English. Please contact the developer.","No puedes modificar el inglés. Por favor, póngase en contacto con el proveedor.","你不能编辑英文。请联系","Tu non puoi modificare l'inglese. Prego di contattare il programmatore.","İngilizce’de değişiklik yapamazsınız. Lütfen geliştirici ile iletişime geçiniz. ","Você não pode modificar o Inglês. Entre em contato com o desenvolvedor.","لا يمكنك تعديل اللغة الإنجليزية. يرجى الاتصال بالمطور."]

{"sheet":"LanguageExtension","index":21,"n_rows":1,"n_cols":1,"rows_kept":1,"cut":false,"hidden":true,"merged":[]}
[{"$f":"Languages!A73&\" (hatcherysupport@aviagen.com)\"","v":"Contact: Hatchery Specialists (hatcherysupport@aviagen.com)"}]

{"sheet":"Translations","index":22,"n_rows":148,"n_cols":15,"rows_kept":148,"cut":false,"hidden":false,"merged":[]}
[]
[null,{"$f":"Languages!A70","v":"Translations"},null,null,null,null,null,null,null,null,null,null,null,null,{"$f":"D5","v":"English"}]
[null,null,null,null,null,null,null,null,null,null,null,null,null,null,{"$f":"INDIRECT(\"Languages!Table7[@\" & $O$2 &\"]\")","v":"Hatchery Monitoring"}]
[null,null,null,{"$f":"Languages!A71","v":"From"},null,{"$f":"Languages!A72","v":"To"},null,null,null,null,null,null,null,null,{"$f":"INDIRECT(\"Languages!Table7[@\" & $O$2 &\"]\")","v":"Company Name"}]
[null,null,null,"English",null,null,null,null,null,null,null,null,null,null,"Data Input"]
[null,null,null,null,null,null,null,null,null,null,null,null,null,null,"DB Review"]
[null,null,null,null,null,null,null,null,null,null,null,null,null,null,"Chart Review"]
[null,null,null,{"$f":"O3","v":"Hatchery Monitoring"},null,null,null,null,null,null,null,null,null,null,"Candling"]
[null,null,null,{"$f":"O4","v":"Company Name"},null,null,null,null,null,null,null,null,null,null,"Hatch Debris"]
[null,null,null,{"$f":"O5","v":"Data Input"},null,null,null,null,null,null,null,null,null,null,"Egg & Chick Weight"]
[null,null,null,"DB Review",null,null,null,null,null,null,null,null,null,null,"General Information"]
[null,null,null,"Chart Review",null,null,null,null,null,null,null,null,null,null,"Data Summary"]
[null,null,null,"Candling",null,null,null,null,null,null,null,null,null,null,"Company"]
[null,null,null,"Hatch Debris",null,null,null,null,null,null,null,null,null,null,"Farm"]
[null,null,null,"Egg & Chick Weight",null,null,null,null,null,null,null,null,null,null,"Flock ID"]
[null,null,null,"General Information",null,null,null,null,null,null,null,null,null,null,"Breed"]
[null,null,null,"Data Summary",null,null,null,null,null,null,null,null,null,null,"Hen Age (weeks)"]
[null,null,null,"Company",null,null,null,null,null,null,null,null,null,null,"Egg Age (days)"]
[null,null,null,"Farm",null,null,null,null,null,null,null,null,null,null,"Setter No"]
[null,null,null,"Flock ID",null,null,null,null,null,null,null,null,null,null,"Hatcher No"]
[null,null,null,"Breed",null,null,null,null,null,null,null,null,null,null,"Date Set"]
[null,null,null,"Hen Age (weeks)",null,null,null,null,null,null,null,null,null,null,"Date Candled"]
[null,null,null,"Egg Age (days)",null,null,null,null,null,null,null,null,null,null,"Date Transferred"]
[null,null,null,"Setter No",null,null,null,null,null,null,null,null,null,null,"Date Hatched"]
[null,null,null,"Hatcher No",null,null,null,null,null,null,null,null,null,null,"No of Eggs Set"]
[null,null,null,"Date Set",null,null,null,null,null,null,null,null,null,null,"No Eggs Removed"]
[null,null,null,"Date Candled",null,null,null,null,null,null,null,null,null,null,"Infertile"]
[null,null,null,"Date Transferred",null,null,null,null,null,null,null,null,null,null,"24h Early Dead"]
[null,null,null,"Date Hatched",null,null,null,null,null,null,null,null,null,null,"48h Early Dead"]
[null,null,null,"No of Eggs Set",null,null,null,null,null,null,null,null,null,null,"Blood Ring"]
[null,null,null,"No Eggs Removed",null,null,null,null,null,null,null,null,null,null,"Black Eye"]
[null,null,null,"Infertile",null,null,null,null,null,null,null,null,null,null,"Contaminated"]
[null,null,null,"24h Early Dead",null,null,null,null,null,null,null,null,null,null,"Poor Shell Quality"]
[null,null,null,"48h Early Dead",null,null,null,null,null,null,null,null,null,null,"Cracked Shell"]
[null,null,null,"Blood Ring",null,null,null,null,null,null,null,null,null,null,"% Eggs Set"]
[null,null,null,"Black Eye",null,null,null,null,null,null,null,null,null,null,"Top Quartile %"]
[null,null,null,"Contaminated",null,null,null,null,null,null,null,null,null,null,"Notes"]
[null,null,null,"Poor Shell Quality",null,null,null,null,null,null,null,null,null,null,"Percentage"]
[null,null,null,"Cracked Shell",null,null,null,null,null,null,null,null,null,null,"Early Dead (0-7d)"]
[null,null,null,"% Eggs Set",null,null,null,null,null,null,null,null,null,null,"Mid Dead (8-14d)"]
[null,null,null,"Top Quartile %",null,null,null,null,null,null,null,null,null,null,"Late Dead (15-21d)"]
[null,null,null,"Notes",null,null,null,null,null,null,null,null,null,null,"External Pip"]
[null,null,null,"Percentage",null,null,null,null,null,null,null,null,null,null,"Dead and Cull Chicks"]
[null,null,null,"Early Dead (0-7d)",null,null,null,null,null,null,null,null,null,null,"Head in Small End of Egg"]
[null,null,null,"Mid Dead (8-14d)",null,null,null,null,null,null,null,null,null,null,"Head to Left"]
[null,null,null,"Late Dead (15-21d)",null,null,null,null,null,null,null,null,null,null,"Feet over Head"]
[null,null,null,"External Pip",null,null,null,null,null,null,null,null,null,null,"Beak above Right Wing"]
[null,null,null,"Dead and Cull Chicks",null,null,null,null,null,null,null,null,null,null,"Exposed Brain / Eye Defect"]
[null,null,null,"Head in Small End of Egg",null,null,null,null,null,null,null,null,null,null,"Extra Limbs"]
[null,null,null,"Head to Left",null,null,null,null,null,null,null,null,null,null,"Ectopic Viscera"]
[null,null,null,"Feet over Head",null,null,null,null,null,null,null,null,null,null,"Excess Albumen"]
[null,null,null,"Beak above Right Wing",null,null,null,null,null,null,null,null,null,null,"Dry Egg Content"]
[null,null,null,"Exposed Brain / Eye Defect",null,null,null,null,null,null,null,null,null,null,"Weight of Empty Tray"]
[null,null,null,"Extra Limbs",null,null,null,null,null,null,null,null,null,null,"Weight of Full Tray"]
[null,null,null,"Ectopic Viscera",null,null,null,null,null,null,null,null,null,null,"Transfer Weight"]
[null,null,null,"Excess Albumen",null,null,null,null,null,null,null,null,null,null,"Total Chick Weight"]
[null,null,null,"Dry Egg Content",null,null,null,null,null,null,null,null,null,null,"No of Chicks Hatched"]
[null,null,null,"Weight of Empty Tray",null,null,null,null,null,null,null,null,null,null,"Culls and Deads"]
[null,null,null,"Weight of Full Tray",null,null,null,null,null,null,null,null,null,null,"Unhatched Eggs"]
[null,null,null,"Transfer Weight",null,null,null,null,null,null,null,null,null,null,"Egg Weight Loss (%)"]
[null,null,null,"Total Chick Weight",null,null,null,null,null,null,null,null,null,null,"Mean Egg Weight (g)"]
[null,null,null,"No of Chicks Hatched",null,null,null,null,null,null,null,null,null,null,"Mean Chick Weight (g)"]
[null,null,null,"Culls and Deads",null,null,null,null,null,null,null,null,null,null,"Chick Yield (%)"]
[null,null,null,"Unhatched Eggs",null,null,null,null,null,null,null,null,null,null,"Data Point"]
[null,null,null,"Egg Weight Loss (%)",null,null,null,null,null,null,null,null,null,null,"Good Region"]
[null,null,null,"Mean Egg Weight (g)",null,null,null,null,null,null,null,null,null,null,"Egg & Chick Weight Monitoring"]
[null,null,null,"Mean Chick Weight (g)",null,null,null,null,null,null,null,null,null,null,"Candling Monitoring"]
[null,null,null,"Chick Yield (%)",null,null,null,null,null,null,null,null,null,null,{"$f":"INDIRECT(\"Languages!Table7[@\" & $O$2 &\"]\")","v":"Simple Hatch Debris Monitoring"}]
[null,null,null,"Data Point",null,null,null,null,null,null,null,null,null,null,"Language Selection"]
[null,null,null,"Good Region",null,null,null,null,null,null,null,null,null,null,"Translations"]
[null,null,null,"Egg & Chick Weight Monitoring",null,null,null,null,null,null,null,null,null,null,"From"]
[null,null,null,"Candling Monitoring",null,null,null,null,null,null,null,null,null,null,"To"]
[null,null,null,"Simple Hatch Debris Monitoring",null,null,null,null,null,null,null,null,null,null,"Contact: Hatchery Specialists"]
[null,null,null,{"$f":"O69","v":"Language Selection"},null,null,null,null,null,null,null,null,null,null,"Click here for HOW TO hatchery documents"]
[null,null,null,"Translations",null,null,null,null,null,null,null,null,null,null,"Tray"]
[null,null,null,"From",null,null,null,null,null,null,null,null,null,null,"Language Correction"]
[null,null,null,"To",null,null,null,null,null,null,null,null,null,null,"Reference"]
[null,null,null,"Contact: Hatchery Specialists",null,null,null,null,null,null,null,null,null,null,"Select"]
[null,null,null,"Click here for HOW TO hatchery documents",null,null,null,null,null,null,null,null,null,null,"Cancel"]
[null,null,null,"Tray",null,null,null,null,null,null,null,null,null,null,"Go"]
[null,null,null,"Language Correction",null,null,null,null,null,null,null,null,null,null,"Calendar - pick a date"]
[null,null,null,"Reference",null,null,null,null,null,null,null,null,null,null,"Close"]
[null,null,null,"Select",null,null,null,null,null,null,null,null,null,null,"OK"]
[null,null,null,"Cancel",null,null,null,null,null,null,null,null,null,null,"Select All"]
[null,null,null,"Go",null,null,null,null,null,null,null,null,null,null,"Deselect All"]
[null,null,null,"Calendar - pick a date",null,null,null,null,null,null,null,null,null,null,"Add a Recipient"]
[null,null,null,"Close",null,null,null,null,null,null,null,null,null,null,"Send"]
[null,null,null,"OK",null,null,null,null,null,null,null,null,null,null,"Sitemap"]
[null,null,null,"Select All",null,null,null,null,null,null,null,null,null,null,"Select a Recipient"]
[null,null,null,"Deselect All",null,null,null,null,null,null,null,null,null,null,"Name"]
[null,null,null,"Add a Recipient",null,null,null,null,null,null,null,null,null,null,"Email Address"]
[null,null,null,"Send",null,null,null,null,null,null,null,null,null,null,"Add"]
[null,null,null,"Sitemap",null,null,null,null,null,null,null,null,null,null,"Add a New Recipient"]
[null,null,null,"Select a Recipient",null,null,null,null,null,null,null,null,null,null,"Select a Breed"]
[null,null,null,"Name",null,null,null,null,null,null,null,null,null,null,"Edit"]
[null,null,null,"Email Address",null,null,null,null,null,null,null,null,null,null,"Add New"]
[null,null,null,"Add",null,null,null,null,null,null,null,null,null,null,"New Breed Name:"]
[null,null,null,"Add a New Recipient",null,null,null,null,null,null,null,null,null,null,"Save"]
[null,null,null,"Select a Breed",null,null,null,null,null,null,null,null,null,null,"Enter a New Breed Name"]
[null,null,null,"Edit",null,null,null,null,null,null,null,null,null,null,"Breed List"]
[null,null,null,"Add New",null,null,null,null,null,null,null,null,null,null,"Delete"]
[null,null,null,"New Breed Name:",null,null,null,null,null,null,null,null,null,null,"Change Name"]
[null,null,null,"Save",null,null,null,null,null,null,null,null,null,null,"Edit the Breed List"]
[null,null,null,"Enter a New Breed Name",null,null,null,null,null,null,null,null,null,null,"Edit the Breed Name"]
[null,null,null,"Breed List",null,null,null,null,null,null,null,null,null,null,"Choose a language to delete"]
[null,null,null,"Delete",null,null,null,null,null,null,null,null,null,null,"Saved"]
[null,null,null,"Change Name",null,null,null,null,null,null,null,null,null,null,"Mal-positions"]
[null,null,null,"Edit the Breed List",null,null,null,null,null,null,null,null,null,null,"Mal-formations"]
[null,null,null,"Edit the Breed Name",null,null,null,null,null,null,null,null,null,null,"Hatch Break-down"]
[null,null,null,"Choose a language to delete",null,null,null,null,null,null,null,null,null,null,"A company name is missing."]
[null,null,null,{"$f":"O106","v":"Saved"},null,null,null,null,null,null,null,null,null,null,"You did not save the data in the board. Do you want to save it now? You still can save it later."]
[null,null,null,"Mal-positions",null,null,null,null,null,null,null,null,null,null,"Warning"]
[null,null,null,"Mal-formations",null,null,null,null,null,null,null,null,null,null,"Farm name is missing."]
[null,null,null,"Hatch Break-down",null,null,null,null,null,null,null,null,null,null,"Flock ID is missing."]
[null,null,null,"A company name is missing.",null,null,null,null,null,null,null,null,null,null,"Breed Name is missing."]
[null,null,null,"You did not save the data in the board. Do you want to save it now? You still can save it later.",null,null,null,null,null,null,null,null,null,null,"Hen age is missing."]
[null,null,null,"Warning",null,null,null,null,null,null,null,null,null,null,"Egg age is missing."]
[null,null,null,"Farm name is missing.",null,null,null,null,null,null,null,null,null,null,"Do you want to write all data to the database?"]
[null,null,null,"Flock ID is missing.",null,null,null,null,null,null,null,null,null,null,"Confirmation: Save Data"]
[null,null,null,"Breed Name is missing.",null,null,null,null,null,null,null,null,null,null,"Successfully saved the data."]
[null,null,null,"Hen age is missing.",null,null,null,null,null,null,null,null,null,null,"You don't have data to be transfered."]
[null,null,null,"Egg age is missing.",null,null,null,null,null,null,null,null,null,null,"There already exists data with the same company, farm, breed, hen age, egg age, and setter number in the Candling DB. Saving data failed."]
[null,null,null,"Do you want to write all data to the database?",null,null,null,null,null,null,null,null,null,null,"Do you want to clear all data?"]
[null,null,null,"Confirmation: Save Data",null,null,null,null,null,null,null,null,null,null,"Confirmation: Clear Data"]
[null,null,null,"Successfully saved the data.",null,null,null,null,null,null,null,null,null,null,"Please choose what to do first: data input, data review, or chart review."]
[null,null,null,"You don't have data to be transfered.",null,null,null,null,null,null,null,null,null,null,"You did not save the data in the board. Do you still want to go back to the main page? If you click Yes, you will lose the data in the board. If you want to save the data, click No and save first."]
[null,null,null,"There already exists data with the same company, farm, breed, hen age, egg age, and setter number in the Candling DB. Saving data failed.",null,null,null,null,null,null,null,null,null,null,"A language name is missing."]
[null,null,null,"Do you want to clear all data?",null,null,null,null,null,null,null,null,null,null,"Translation is not complete. Fill out all blanks."]
[null,null,null,"Confirmation: Clear Data",null,null,null,null,null,null,null,null,null,null,"There already exists the same language in the language DB."]
[null,null,null,"Please choose what to do first: data input, data review, or chart review.",null,null,null,null,null,null,null,null,null,null,"You must choose one of each selection."]
[null,null,null,"You did not save the data in the board. Do you still want to go back to the main page? If you click Yes, you will lose the data in the board. If you want to save the data, click No and save first.",null,null,null,null,null,null,null,null,null,null,"The month name must match one on the list."]
[null,null,null,"A language name is missing.",null,null,null,null,null,null,null,null,null,null,{"$f":"INDIRECT(\"Languages!Table7[@\" & $O$2 &\"]\")","v":"You did not select a date."}]
[null,null,null,"Translation is not complete. Fill out all blanks.",null,null,null,null,null,null,null,null,null,null,"You must choose at least one recipient."]
[null,null,null,"There already exists the same language in the language DB.",null,null,null,null,null,null,null,null,null,null,"You must fill out the name field."]
[null,null,null,"You must choose one of each selection.",null,null,null,null,null,null,null,null,null,null,"You must fill out the email address field."]
[null,null,null,"The month name must match one on the list.",null,null,null,null,null,null,null,null,null,null,"Do you really want to delete the breed name from the list?"]
[null,null,null,"You did not select a date.",null,null,null,null,null,null,null,null,null,null,"Confirmation: Delete"]
[null,null,null,"You must choose at least one recipient.",null,null,null,null,null,null,null,null,null,null,"Please select one item in the list on the left."]
[null,null,null,"You must fill out the name field.",null,null,null,null,null,null,null,null,null,null,"Please select only one item at a time."]
[null,null,null,"You must fill out the email address field.",null,null,null,null,null,null,null,null,null,null,"You cannot delete the current language. Deletion failed."]
[null,null,null,"Do you really want to delete the breed name from the list?",null,null,null,null,null,null,null,null,null,null,"Only a date format is permitted in this cell."]
[null,null,null,"Confirmation: Delete",null,null,null,null,null,null,null,null,null,null,"Only an integer format is permitted in this cell."]
[null,null,null,"Please select one item in the list on the left.",null,null,null,null,null,null,null,null,null,null,"You cannot modify English. Please contact the developer."]
[null,null,null,"Please select only one item at a time."]
[null,null,null,"You cannot delete the current language. Deletion failed."]
[null,null,null,"Only a date format is permitted in this cell."]
[null,null,null,"Only an integer format is permitted in this cell."]
[null,null,null,"You cannot modify English. Please contact the developer."]

{"sheet":"LanguageCorrection","index":23,"n_rows":148,"n_cols":15,"rows_kept":148,"cut":false,"hidden":false,"merged":[]}
[]
[null,{"$f":"Languages!A76","v":"Language Correction"},null,null,null,null,null,null,null,null,null,null,null,null,{"$f":"D5","v":"English"}]
[null,null,null,null,null,null,null,null,null,null,null,null,null,null,{"$f":"INDIRECT(\"Languages!Table7[@\" & $O$2 &\"]\")","v":"Hatchery Monitoring"}]
[null,null,null,{"$f":"Languages!A77","v":"Reference"},null,null,null,null,null,null,null,null,null,null,{"$f":"INDIRECT(\"Languages!Table7[@\" & $O$2 &\"]\")","v":"Company Name"}]
[null,null,null,"English",null,null,null,null,null,null,null,null,null,null,"Data Input"]
[null,null,null,null,null,null,null,null,null,null,null,null,null,null,"DB Review"]
[null,null,null,null,null,null,null,null,null,null,null,null,null,null,"Chart Review"]
[null,null,null,{"$f":"O3","v":"Hatchery Monitoring"},null,null,null,null,null,null,null,null,null,null,"Candling"]
[null,null,null,{"$f":"O4","v":"Company Name"},null,null,null,null,null,null,null,null,null,null,"Hatch Debris"]
[null,null,null,{"$f":"O5","v":"Data Input"},null,null,null,null,null,null,null,null,null,null,"Egg & Chick Weight"]
[null,null,null,"DB Review",null,null,null,null,null,null,null,null,null,null,"General Information"]
[null,null,null,"Chart Review",null,null,null,null,null,null,null,null,null,null,"Data Summary"]
[null,null,null,"Candling",null,null,null,null,null,null,null,null,null,null,"Company"]
[null,null,null,"Hatch Debris",null,null,null,null,null,null,null,null,null,null,"Farm"]
[null,null,null,"Egg & Chick Weight",null,null,null,null,null,null,null,null,null,null,"Flock ID"]
[null,null,null,"General Information",null,null,null,null,null,null,null,null,null,null,"Breed"]
[null,null,null,"Data Summary",null,null,null,null,null,null,null,null,null,null,"Hen Age (weeks)"]
[null,null,null,"Company",null,null,null,null,null,null,null,null,null,null,"Egg Age (days)"]
[null,null,null,"Farm",null,null,null,null,null,null,null,null,null,null,"Setter No"]
[null,null,null,"Flock ID",null,null,null,null,null,null,null,null,null,null,"Hatcher No"]
[null,null,null,"Breed",null,null,null,null,null,null,null,null,null,null,"Date Set"]
[null,null,null,"Hen Age (weeks)",null,null,null,null,null,null,null,null,null,null,"Date Candled"]
[null,null,null,"Egg Age (days)",null,null,null,null,null,null,null,null,null,null,"Date Transferred"]
[null,null,null,"Setter No",null,null,null,null,null,null,null,null,null,null,"Date Hatched"]
[null,null,null,"Hatcher No",null,null,null,null,null,null,null,null,null,null,"No of Eggs Set"]
[null,null,null,"Date Set",null,null,null,null,null,null,null,null,null,null,"No Eggs Removed"]
[null,null,null,"Date Candled",null,null,null,null,null,null,null,null,null,null,"Infertile"]
[null,null,null,"Date Transferred",null,null,null,null,null,null,null,null,null,null,"24h Early Dead"]
[null,null,null,"Date Hatched",null,null,null,null,null,null,null,null,null,null,"48h Early Dead"]
[null,null,null,"No of Eggs Set",null,null,null,null,null,null,null,null,null,null,"Blood Ring"]
[null,null,null,"No Eggs Removed",null,null,null,null,null,null,null,null,null,null,"Black Eye"]
[null,null,null,"Infertile",null,null,null,null,null,null,null,null,null,null,"Contaminated"]
[null,null,null,"24h Early Dead",null,null,null,null,null,null,null,null,null,null,"Poor Shell Quality"]
[null,null,null,"48h Early Dead",null,null,null,null,null,null,null,null,null,null,"Cracked Shell"]
[null,null,null,"Blood Ring",null,null,null,null,null,null,null,null,null,null,"% Eggs Set"]
[null,null,null,"Black Eye",null,null,null,null,null,null,null,null,null,null,"Top Quartile %"]
[null,null,null,"Contaminated",null,null,null,null,null,null,null,null,null,null,"Notes"]
[null,null,null,"Poor Shell Quality",null,null,null,null,null,null,null,null,null,null,"Percentage"]
[null,null,null,"Cracked Shell",null,null,null,null,null,null,null,null,null,null,"Early Dead (0-7d)"]
[null,null,null,"% Eggs Set",null,null,null,null,null,null,null,null,null,null,"Mid Dead (8-14d)"]
[null,null,null,"Top Quartile %",null,null,null,null,null,null,null,null,null,null,"Late Dead (15-21d)"]
[null,null,null,"Notes",null,null,null,null,null,null,null,null,null,null,"External Pip"]
[null,null,null,"Percentage",null,null,null,null,null,null,null,null,null,null,"Dead and Cull Chicks"]
[null,null,null,"Early Dead (0-7d)",null,null,null,null,null,null,null,null,null,null,"Head in Small End of Egg"]
[null,null,null,"Mid Dead (8-14d)",null,null,null,null,null,null,null,null,null,null,"Head to Left"]
[null,null,null,"Late Dead (15-21d)",null,null,null,null,null,null,null,null,null,null,"Feet over Head"]
[null,null,null,"External Pip",null,null,null,null,null,null,null,null,null,null,"Beak above Right Wing"]
[null,null,null,"Dead and Cull Chicks",null,null,null,null,null,null,null,null,null,null,"Exposed Brain / Eye Defect"]
[null,null,null,"Head in Small End of Egg",null,null,null,null,null,null,null,null,null,null,"Extra Limbs"]
[null,null,null,"Head to Left",null,null,null,null,null,null,null,null,null,null,"Ectopic Viscera"]
[null,null,null,"Feet over Head",null,null,null,null,null,null,null,null,null,null,"Excess Albumen"]
[null,null,null,"Beak above Right Wing",null,null,null,null,null,null,null,null,null,null,"Dry Egg Content"]
[null,null,null,"Exposed Brain / Eye Defect",null,null,null,null,null,null,null,null,null,null,"Weight of Empty Tray"]
[null,null,null,"Extra Limbs",null,null,null,null,null,null,null,null,null,null,"Weight of Full Tray"]
[null,null,null,"Ectopic Viscera",null,null,null,null,null,null,null,null,null,null,"Transfer Weight"]
[null,null,null,"Excess Albumen",null,null,null,null,null,null,null,null,null,null,"Total Chick Weight"]
[null,null,null,"Dry Egg Content",null,null,null,null,null,null,null,null,null,null,"No of Chicks Hatched"]
[null,null,null,"Weight of Empty Tray",null,null,null,null,null,null,null,null,null,null,"Culls and Deads"]
[null,null,null,"Weight of Full Tray",null,null,null,null,null,null,null,null,null,null,"Unhatched Eggs"]
[null,null,null,"Transfer Weight",null,null,null,null,null,null,null,null,null,null,"Egg Weight Loss (%)"]
[null,null,null,"Total Chick Weight",null,null,null,null,null,null,null,null,null,null,"Mean Egg Weight (g)"]
[null,null,null,"No of Chicks Hatched",null,null,null,null,null,null,null,null,null,null,"Mean Chick Weight (g)"]
[null,null,null,"Culls and Deads",null,null,null,null,null,null,null,null,null,null,"Chick Yield (%)"]
[null,null,null,"Unhatched Eggs",null,null,null,null,null,null,null,null,null,null,"Data Point"]
[null,null,null,"Egg Weight Loss (%)",null,null,null,null,null,null,null,null,null,null,"Good Region"]
[null,null,null,"Mean Egg Weight (g)",null,null,null,null,null,null,null,null,null,null,"Egg & Chick Weight Monitoring"]
[null,null,null,"Mean Chick Weight (g)",null,null,null,null,null,null,null,null,null,null,"Candling Monitoring"]
[null,null,null,"Chick Yield (%)",null,null,null,null,null,null,null,null,null,null,{"$f":"INDIRECT(\"Languages!Table7[@\" & $O$2 &\"]\")","v":"Simple Hatch Debris Monitoring"}]
[null,null,null,"Data Point",null,null,null,null,null,null,null,null,null,null,"Language Selection"]
[null,null,null,"Good Region",null,null,null,null,null,null,null,null,null,null,"Translations"]
[null,null,null,"Egg & Chick Weight Monitoring",null,null,null,null,null,null,null,null,null,null,"From"]
[null,null,null,"Candling Monitoring",null,null,null,null,null,null,null,null,null,null,"To"]
[null,null,null,"Simple Hatch Debris Monitoring",null,null,null,null,null,null,null,null,null,null,"Contact: Hatchery Specialists"]
[null,null,null,{"$f":"O69","v":"Language Selection"},null,null,null,null,null,null,null,null,null,null,"Click here for HOW TO hatchery documents"]
[null,null,null,"Translations",null,null,null,null,null,null,null,null,null,null,"Tray"]
[null,null,null,"From",null,null,null,null,null,null,null,null,null,null,"Language Correction"]
[null,null,null,"To",null,null,null,null,null,null,null,null,null,null,"Reference"]
[null,null,null,"Contact: Hatchery Specialists",null,null,null,null,null,null,null,null,null,null,"Select"]
[null,null,null,"Click here for HOW TO hatchery documents",null,null,null,null,null,null,null,null,null,null,"Cancel"]
[null,null,null,"Tray",null,null,null,null,null,null,null,null,null,null,"Go"]
[null,null,null,"Language Correction",null,null,null,null,null,null,null,null,null,null,"Calendar - pick a date"]
[null,null,null,"Reference",null,null,null,null,null,null,null,null,null,null,"Close"]
[null,null,null,"Select",null,null,null,null,null,null,null,null,null,null,"OK"]
[null,null,null,"Cancel",null,null,null,null,null,null,null,null,null,null,"Select All"]
[null,null,null,"Go",null,null,null,null,null,null,null,null,null,null,"Deselect All"]
[null,null,null,"Calendar - pick a date",null,null,null,null,null,null,null,null,null,null,"Add a Recipient"]
[null,null,null,"Close",null,null,null,null,null,null,null,null,null,null,"Send"]
[null,null,null,"OK",null,null,null,null,null,null,null,null,null,null,"Sitemap"]
[null,null,null,"Select All",null,null,null,null,null,null,null,null,null,null,"Select a Recipient"]
[null,null,null,"Deselect All",null,null,null,null,null,null,null,null,null,null,"Name"]
[null,null,null,"Add a Recipient",null,null,null,null,null,null,null,null,null,null,"Email Address"]
[null,null,null,"Send",null,null,null,null,null,null,null,null,null,null,"Add"]
[null,null,null,"Sitemap",null,null,null,null,null,null,null,null,null,null,"Add a New Recipient"]
[null,null,null,"Select a Recipient",null,null,null,null,null,null,null,null,null,null,"Select a Breed"]
[null,null,null,"Name",null,null,null,null,null,null,null,null,null,null,"Edit"]
[null,null,null,"Email Address",null,null,null,null,null,null,null,null,null,null,"Add New"]
[null,null,null,"Add",null,null,null,null,null,null,null,null,null,null,"New Breed Name:"]
[null,null,null,"Add a New Recipient",null,null,null,null,null,null,null,null,null,null,"Save"]
[null,null,null,"Select a Breed",null,null,null,null,null,null,null,null,null,null,"Enter a New Breed Name"]
[null,null,null,"Edit",null,null,null,null,null,null,null,null,null,null,"Breed List"]
[null,null,null,"Add New",null,null,null,null,null,null,null,null,null,null,"Delete"]
[null,null,null,"New Breed Name:",null,null,null,null,null,null,null,null,null,null,"Change Name"]
[null,null,null,"Save",null,null,null,null,null,null,null,null,null,null,"Edit the Breed List"]
[null,null,null,"Enter a New Breed Name",null,null,null,null,null,null,null,null,null,null,"Edit the Breed Name"]
[null,null,null,"Breed List",null,null,null,null,null,null,null,null,null,null,"Choose a language to delete"]
[null,null,null,"Delete",null,null,null,null,null,null,null,null,null,null,"Saved"]
[null,null,null,"Change Name",null,null,null,null,null,null,null,null,null,null,"Mal-positions"]
[null,null,null,"Edit the Breed List",null,null,null,null,null,null,null,null,null,null,"Mal-formations"]
[null,null,null,"Edit the Breed Name",null,null,null,null,null,null,null,null,null,null,"Hatch Break-down"]
[null,null,null,"Choose a language to delete",null,null,null,null,null,null,null,null,null,null,"A company name is missing."]
[null,null,null,"Saved",null,null,null,null,null,null,null,null,null,null,"You did not save the data in the board. Do you want to save it now? You still can save it later."]
[null,null,null,"Mal-positions",null,null,null,null,null,null,null,null,null,null,"Warning"]
[null,null,null,"Mal-formations",null,null,null,null,null,null,null,null,null,null,"Farm name is missing."]
[null,null,null,"Hatch Break-down",null,null,null,null,null,null,null,null,null,null,"Flock ID is missing."]
[null,null,null,"A company name is missing.",null,null,null,null,null,null,null,null,null,null,"Breed Name is missing."]
[null,null,null,"You did not save the data in the board. Do you want to save it now? You still can save it later.",null,null,null,null,null,null,null,null,null,null,"Hen age is missing."]
[null,null,null,"Warning",null,null,null,null,null,null,null,null,null,null,"Egg age is missing."]
[null,null,null,"Farm name is missing.",null,null,null,null,null,null,null,null,null,null,"Do you want to write all data to the database?"]
[null,null,null,"Flock ID is missing.",null,null,null,null,null,null,null,null,null,null,"Confirmation: Save Data"]
[null,null,null,"Breed Name is missing.",null,null,null,null,null,null,null,null,null,null,"Successfully saved the data."]
[null,null,null,"Hen age is missing.",null,null,null,null,null,null,null,null,null,null,"You don't have data to be transfered."]
[null,null,null,"Egg age is missing.",null,null,null,null,null,null,null,null,null,null,"There already exists data with the same company, farm, breed, hen age, egg age, and setter number in the Candling DB. Saving data failed."]
[null,null,null,"Do you want to write all data to the database?",null,null,null,null,null,null,null,null,null,null,"Do you want to clear all data?"]
[null,null,null,"Confirmation: Save Data",null,null,null,null,null,null,null,null,null,null,"Confirmation: Clear Data"]
[null,null,null,"Successfully saved the data.",null,null,null,null,null,null,null,null,null,null,"Please choose what to do first: data input, data review, or chart review."]
[null,null,null,"You don't have data to be transfered.",null,null,null,null,null,null,null,null,null,null,"You did not save the data in the board. Do you still want to go back to the main page? If you click Yes, you will lose the data in the board. If you want to save the data, click No and save first."]
[null,null,null,"There already exists data with the same company, farm, breed, hen age, egg age, and setter number in the Candling DB. Saving data failed.",null,null,null,null,null,null,null,null,null,null,"A language name is missing."]
[null,null,null,"Do you want to clear all data?",null,null,null,null,null,null,null,null,null,null,"Translation is not complete. Fill out all blanks."]
[null,null,null,"Confirmation: Clear Data",null,null,null,null,null,null,null,null,null,null,"There already exists the same language in the language DB."]
[null,null,null,"Please choose what to do first: data input, data review, or chart review.",null,null,null,null,null,null,null,null,null,null,"You must choose one of each selection."]
[null,null,null,"You did not save the data in the board. Do you still want to go back to the main page? If you click Yes, you will lose the data in the board. If you want to save the data, click No and save first.",null,null,null,null,null,null,null,null,null,null,"The month name must match one on the list."]
[null,null,null,"A language name is missing.",null,null,null,null,null,null,null,null,null,null,{"$f":"INDIRECT(\"Languages!Table7[@\" & $O$2 &\"]\")","v":"You did not select a date."}]
[null,null,null,"Translation is not complete. Fill out all blanks.",null,null,null,null,null,null,null,null,null,null,"You must choose at least one recipient."]
[null,null,null,"There already exists the same language in the language DB.",null,null,null,null,null,null,null,null,null,null,"You must fill out the name field."]
[null,null,null,"You must choose one of each selection.",null,null,null,null,null,null,null,null,null,null,"You must fill out the email address field."]
[null,null,null,"The month name must match one on the list.",null,null,null,null,null,null,null,null,null,null,"Do you really want to delete the breed name from the list?"]
[null,null,null,"You did not select a date.",null,null,null,null,null,null,null,null,null,null,"Confirmation: Delete"]
[null,null,null,{"$f":"O133","v":"You must choose at least one recipient."},null,null,null,null,null,null,null,null,null,null,"Please select one item in the list on the left."]
[null,null,null,"You must fill out the name field.",null,null,null,null,null,null,null,null,null,null,"Please select only one item at a time."]
[null,null,null,"You must fill out the email address field.",null,null,null,null,null,null,null,null,null,null,"You cannot delete the current language. Deletion failed."]
[null,null,null,"Do you really want to delete the breed name from the list?",null,null,null,null,null,null,null,null,null,null,"Only a date format is permitted in this cell."]
[null,null,null,"Confirmation: Delete",null,null,null,null,null,null,null,null,null,null,"Only an integer format is permitted in this cell."]
[null,null,null,"Please select one item in the list on the left.",null,null,null,null,null,null,null,null,null,null,"You cannot modify English. Please contact the developer."]
[null,null,null,"Please select only one item at a time."]
[null,null,null,"You cannot delete the current language. Deletion failed."]
[null,null,null,"Only a date format is permitted in this cell."]
[null,null,null,"Only an integer format is permitted in this cell."]
[null,null,null,"You cannot modify English. Please contact the developer."]

{"sheet":"RecipientList","index":24,"n_rows":3,"n_cols":2,"rows_kept":3,"cut":false,"hidden":true,"merged":[]}
["Name","email address"]
["Mia Shim","myshim@aviagen.com"]
["Hatchery Group","hatcherysupport@aviagen.com"]

{"sheet":"BreedList","index":25,"n_rows":10,"n_cols":1,"rows_kept":10,"cut":false,"hidden":true,"merged":[]}
["Breed Name"]
[344]
[707]
["Ranger Classic"]
["Ranger Gold"]
["Ross 308"]
["Ross 308 AP"]
["Ross 708"]
["Rowan Ranger"]
["YPM"]